Workbook

Sheet Security Settings
C3: Warning: Content Blocked!
C5: Your Excel security settings are currently blocking some of the features in this FAST spreadsheet.
C6: The default settings for Microsoft Excel 2003 (and previous versions) and Excel 2007 do not allow
C7: Macros contained in this spreadsheet to function properly and need to be changed.
C9: For step by step instructions of how to change these settings and allow the content to be displayed
C10: on your computer, please select either the "Excel 2003 and Previous" or "Excel 2007" button below.
C17: Instructions for: Microsoft Excel 2003 and Previous
C18: Your Excel security settings must be changed to use FAST Tools. Using the Excel menu commands,
C19: perform the following steps to change your settings. These steps will only need to be performed once to
C20: run FAST tools.
C22: 1. Reset Security Settings, select
D23: Tools
D24: Macro
D25: Security
D26: Medium
C28: 2. Close this Excel workbook, select
D29: File
D30: Close
D31: Do not save changes
C33: 3. Reopen the Workbook via FAST menu or
D34: File
D35: Open
D36: "click on spreadsheet name"
C38: 4. Click on Enable Macros when you see the dialog box similar to the one below.
C60: Instructions for: Microsoft Excel 2007
C61: Microsoft Excel 2007 uses a different method to enable the content in a FAST Spreadsheet. When
C62: opening FAST Spreadsheets with Microsoft Excel 2007, a "Security Warning" box will appear
C63: just below the menu bar at the top left hand corner of the screen. The following steps need to be
C64: performed to run FAST programs.
C66: 1. Select the "Options…" button to open up Microsoft Office Security Options.
C72: 2. To allow the FAST Spreadsheet to run properly, you must enable Macros to run by
C73: selecting “Enable this content” in the list of security options.

Sheet Information
F4: Land Purchase Analysis
P13: =ISERR(Macros) -> FALSE
P16: =RAND() -> 0.8975309488
D17: Support Provided By:
E27: =macroCheck(1)*P16 -> 0.8975309488
D39: Updated: 9/14/2004
D41: Updated 3/1/13

Sheet Main-Land Bid Price
B1: Real Estate Purchase Analysis | K1: =IF(ABS(K2-K3)<3.33333333333333E-07*Aprice,0,1) -> 0 | AA1: 3 | AB1: 1 | AC1: 150% Declining Balance, half year | AG1: Year | AH1: Rate | AI1: Depreciation | AJ1: Remaining Basis
B2: Used to determine the maximum bid price of a real estate investment opportunity and sensitivity to terms. | K2: =NPVRange -> 962.02176 | AA2: 5 | AB2: 2 | AC2: 200% Declining Balance, half year | AG2: 1 | AH2: 0.1666666716 | AI2: 0
K3: 962.0217896 | AA3: 7 | AB3: 3 | AC3: Straight Line (half year) | AG3: 2 | AH3: 0.3333333254 | AI3: 0
AA4: 10 | AB4: 4 | AC4: Straight Line (full year) | AG4: 3 | AH4: 0.3333333254 | AI4: 0
B5: Real Estate and Investment Information: | D5: Financing Information: | AA5: 12 | AG5: 4 | AH5: 0.1666666627 | AI5: 0
B6: Analysis price | C6: 8000 | D6: Down payment (%) | F6: 0.25 | AA6: 15 | AC6: Straight Line (full year)
B7: Additional cash flows: year 1 | C7: 350 | D7: Annual interest rate on loan (%) | F7: 0.06 | AA7: 20 | AC7: =MATCH(AC6,AC1:AC4,0) -> 4
B8: Optional: Enter specific cash flows | D8: Length of loan (years) | F8: 20 | AA8: 25 | AC8: =IF(AC7=1,1.5,IF(AC7=2,2,1)) -> 1
B9: Property taxes: year 1 | C9: 30 | AA9: 30 | AC9: 0
B10: Annual cash flow growth rate (%) | C10: 0.02 | D10: Investor Information: | AA10: 40 | AC10: =(basis-Elect179)*Length -> 0
B11: Annual appreciation rate of land values (%) | C11: 0.02 | D11: Marginal tax rate (%) | F11: 0.28 | AC11: =ABS(AC10-temp) -> 0
B12: Closing fees (% initial purchase) | C12: 0.01 | D12: Capital gains tax rate (%) | F12: 0.15
B13: Selling fees (% end of horizon) | C13: 0.04 | D13: After-tax discount rate (%) | F13: 0.04
B14: Amount qualifying for depreciation | C14: 0 | D14: Solver Information:
B15: Length to depreciate (years) | C15: 3 | D15: Investment return sensitivity range (%) | F15: 0.02
B16: Depreciation method * | D16: Cash flow sensitivity range (%) | F16: 0.1
B17: Additional depreciation 1st year (179 election) | C17: 0
B18: Results
B19: Profitability @ Analysis Price (NPV) | D19: Maximum Bid Price
B20: 5 year investment horizon | C20: =solve5 -> -164.59 | E20: 5 year investment horizon | F20: =IF(change=0,'Sensitivity Tables'!H4,"Click Solve") -> 6929.9
B21: 10 year investment horizon | C21: =solve10 -> 22.87 | E21: 10 year investment horizon | F21: =IF(change=0,'Sensitivity Tables'!H5,"Click Solve") -> 8091.02
B22: 30 year investment horizon | C22: =solve30 -> 857.51 | E22: 30 year investment horizon | F22: =IF(change=0,'Sensitivity Tables'!H6,"Click Solve") -> 9622.21
B23: Investment Return @ Analysis Price | D23: Initial Cash Flow Needed to Achieve Desired Return
B24: 5 year investment horizon | C24: ='5 Year Model'!O14 -> 0.02550288987 | E24: 5 year investment horizon | F24: =IF(change=0,'Sensitivity Tables'!J32,"Click Solve") -> 399.4131069
B25: 10 year investment horizon | C25: ='10 Year Model'!O19 -> 0.0408450988 | E25: 10 year investment horizon | F25: =IF(change=0,'Sensitivity Tables'!J33,"Click Solve") -> 346.4008543
B26: 30 year investment horizon | C26: ='30 Year Model'!O39 -> 0.04752167523 | E26: 30 year investment horizon | F26: =IF(change=0,'Sensitivity Tables'!J38,"Click Solve") -> 296.0513293
B27: Cash Flow Growth Rate Needed to Achieve Desired Return | D27: Appreciation Rate Needed to Achieve Desired Return
B28: 5 year investment horizon | C28: =IF(change=0,'5 Year Model'!O37,"Click Solve") -> 0.09469576297 | E28: 5 year investment horizon | F28: =IF(change=0,'5 Year Model'!O41,"Click Solve") -> 0.02560602226
B29: 10 year investment horizon | C29: =IF(change=0,'10 Year Model'!O42,"Click Solve") -> 0.01733809171 | E29: 10 year investment horizon | F29: =IF(change=0,'10 Year Model'!O46,"Click Solve") -> 0.01956524155
B30: 30 year investment horizon | C30: =IF(change=0,'30 Year Model'!O61,"Click Solve") -> 0.005063083989 | E30: 30 year investment horizon | F30: =IF(change=0,'30 Year Model'!O65,"Click Solve") -> 0.01092342866

Sheet Feasibility
A1: Analysis Price Entered As: | S1: Calculation Section
C2: 80 | S2: Estimated Gross | U2: =C7 -> 478000 | V2: =C7/(C7-C8)*E74 -> 552162.4242
S3: Estimated Operating Costs | U3: =C8 -> 313000 | V3: =C8/C7*V2 -> 361562.4242
R4: Gross
S5: -0.25 | U5: =IF($C$98>0,($S5)*U$2+C$98,"") -> -77750 | V5: =IF($E$98>0,($S5)*V$2+E$98,"") -> -124290.0804
A6: Pre-Investment: Cash Flows & Profitability | C6: Values prior to RE Investment | E6: Subtotals | S6: =S5+0.025 -> -0.225 | U6: =IF($C$98>0,($S6)*U$2+C$98,"") -> -65800 | V6: =IF($E$98>0,($S6)*V$2+E$98,"") -> -110486.0198
B7: Gross Revenue | C7: 478000 | S7: =S6+0.025 -> -0.2 | U7: -53850 | V7: -96681.95915
B8: Operating Expenses | C8: 313000 | S8: -0.175 | U8: -41900 | V8: -82877.89855
B9: Depreciation | C9: 43912 | S9: -0.15 | U9: -29950 | V9: -69073.83794
B10: Interest Expense on Operating | C10: 12500 | S10: -0.125 | U10: -18000 | V10: -55269.77734
B11: Interest Expense on Term Debt | C11: 19500 | S11: -0.1 | U11: -6050 | V11: -41465.71673
S12: -0.075 | U12: 5900 | V12: -27661.65612
B13: Net Farm Income From Operations | E13: =C7-C8-C9-C10-C11 -> 89088 | S13: -0.05 | U13: 17850 | V13: -13857.59552
S14: -0.025 | U14: 29800 | V14: -53.53491147
B15: Net Non-farm Income | C15: 12000 | S15: -3.469446952e-17 | U15: 41750 | V15: 13750.52569
B16: Family Living Withdrawals | C16: 65000 | S16: 0.025 | U16: 53700 | V16: 27554.5863
B17: Principal Payments on Term Debt | C17: 17500 | S17: 0.05 | U17: 65650 | V17: 41358.64691
B18: Income Taxes | C18: 20750 | S18: 0.075 | U18: 77600 | V18: 55162.70751
S19: 0.1 | U19: 89550 | V19: 68966.76812
B20: Assets | S20: 0.125 | U20: 101500 | V20: 82770.82872
B21: Current Assets | S21: 0.15 | U21: 113450 | V21: 96574.88933
B22: Cash and Marketable Securities | C22: 72000 | E22: <-Note: This will be used as the source of down payment, remainder financed | S22: 0.175 | U22: 125400 | V22: 110378.9499
B23: Other Current Assets | C23: 170000 | S23: 0.2 | U23: 137350 | V23: 124183.0105
B24: Total Current Assets | E24: =C23+C22 -> 242000 | S24: 0.225 | U24: 149300 | V24: 137987.0711
B25: Noncurrent Assets | S25: 0.25 | U25: 161250 | V25: 151791.1318
B26: Real Estate | C26: 290000
B27: Other Nonreal Estate Assets | C27: 425000 | R27: Op Cost
B28: Total Noncurrent Assets | E28: =C27+C26 -> 715000 | S28: -0.25 | U28: =IF($C$98>0,-U$3*$S28+C$98,"NA") -> 120000 | V28: =IF($E$98>0,-V$3*$S28+E$98,"") -> 104141.1318
B29: Total Assets | E29: =E24+E28 -> 957000 | S29: =S28+0.025 -> -0.225 | U29: =IF($C$98>0,-U$3*$S29+C$98,"NA") -> 112175 | V29: =IF($E$98>0,-V$3*$S29+E$98,"") -> 95102.07115
S30: -0.2 | U30: 104350 | V30: 86063.01054
B31: Liabilities | S31: -0.175 | U31: 96525 | V31: 77023.94994
B32: Current Liabilities | S32: -0.15 | U32: 88700 | V32: 67984.88933
B33: Operating notes payable | C33: 92000 | S33: -0.125 | U33: 80875 | V33: 58945.82872
B34: Other current liabilities | C34: 32000 | S34: -0.1 | U34: 73050 | V34: 49906.76812
B35: Total Current Liabilities | E35: =C34+C33 -> 124000 | S35: -0.075 | U35: 65225 | V35: 40867.70751
B36: Noncurrent Liabilities | C36: 325000 | S36: -0.05 | U36: 57400 | V36: 31828.64691
B37: Total Liabilities | E37: =E35+C36 -> 449000 | S37: -0.025 | U37: 49575 | V37: 22789.5863
S38: -3.469446952e-17 | U38: 41750 | V38: 13750.52569
B39: Total Equity | E39: =E29-E37 -> 508000 | S39: 0.025 | U39: 33925 | V39: 4711.465089
S40: 0.05 | U40: 26100 | V40: -4327.595518
B41: Simple Static Appraisal of Financial Condition | S41: 0.075 | U41: 18275 | V41: -13366.65612
S42: 0.1 | U42: 10450 | V42: -22405.71673
B43: Balance Sheet Summary | H43: Net After Tax Cash Flows | S43: 0.125 | U43: 2625 | V43: -31444.77734
G44: Year | H44: 5 Year | I44: 10 Year | J44: 30 Year | S44: =S43+0.025 -> 0.15 | U44: =IF($C$98>0,-U$3*$S44+C$98,"NA") -> -5200 | V44: =IF($E$98>0,-V$3*$S44+E$98,"") -> -40483.83794
G45: % Downpayment Needed for Break-even Cash Flow Year 1 | S45: =S44+0.025 -> 0.175 | U45: =IF($C$98>0,-U$3*$S45+C$98,"NA") -> -13025 | V45: =IF($E$98>0,-V$3*$S45+E$98,"") -> -49522.89855
C46: Pre-Investment | E46: Post-Investment | H46: 0.5828630418 | I46: 0.5868411872 | J46: 0.5894932841 | S46: =S45+0.025 -> 0.2 | U46: =IF($C$98>0,-U$3*$S46+C$98,"NA") -> -20850 | V46: =IF($E$98>0,-V$3*$S46+E$98,"") -> -58561.95915
B47: Assets | G47: 0 | H47: =$C$2*'5 Year Model'!O8 -> -166400 | I47: =$C$2*'10 Year Model'!$O8 -> -166400 | J47: =$C$2*'30 Year Model'!$O8 -> -166400 | S47: =S46+0.025 -> 0.225 | U47: =IF($C$98>0,-U$3*$S47+C$98,"NA") -> -28675 | V47: =IF($E$98>0,-V$3*$S47+E$98,"") -> -67601.01976
B48: Current Assets | G48: 1 | H48: =$C$2*'5 Year Model'!O9 -> -14994.18735 | I48: =$C$2*'10 Year Model'!O9 -> -15173.38735 | J48: =$C$2*'30 Year Model'!$O9 -> -15292.85402 | S48: =S47+0.025 -> 0.25 | U48: =IF($C$98>0,-U$3*$S48+C$98,"NA") -> -36500 | V48: =IF($E$98>0,-V$3*$S48+E$98,"") -> -76640.08037
B49: Cash and Marketable Securities | C49: =C22 -> 72000 | E49: =IF((C49+H47)<0,0,C49+H47) -> 0 | G49: 2 | H49: =$C$2*'5 Year Model'!O10 -> -14844.76362 | I49: =$C$2*'10 Year Model'!O10 -> -15023.96362 | J49: =$C$2*'30 Year Model'!$O10 -> -15143.43028
B50: Other Current Assets | C50: =C23 -> 170000 | E50: =(C50) -> 170000 | G50: 3 | H50: =$C$2*'5 Year Model'!O11 -> -14701.12006 | I50: =$C$2*'10 Year Model'!O11 -> -14880.32006 | J50: =$C$2*'30 Year Model'!$O11 -> -14999.78673
B51: Total Current Assets | C51: =C50+C49 -> 242000 | E51: =E50+E49 -> 170000 | G51: 4 | H51: =$C$2*'5 Year Model'!O12 -> -14563.8984 | I51: =$C$2*'10 Year Model'!O12 -> -14743.0984 | J51: =$C$2*'30 Year Model'!$O12 -> -14862.56507
B52: Noncurrent Assets | G52: 5 | H52: =$C$2*'5 Year Model'!O13 -> 251717.4738 | I52: =$C$2*'10 Year Model'!O13 -> -14612.98477 | J52: =$C$2*'30 Year Model'!$O13 -> -14732.45143
B53: Real Estate | C53: =C26 -> 290000 | E53: =C53+NoAcres*Aprice+price10*closing*NoAcres -> 936400 | G53: 6 | I53: =$C$2*'10 Year Model'!O14 -> -14490.71246 | J53: =$C$2*'30 Year Model'!$O14 -> -14610.17913
B54: Other Nonreal Estate Assets | C54: =C27 -> 425000 | E54: =C54 -> 425000 | G54: 7 | I54: =$C$2*'10 Year Model'!O15 -> -14377.06493 | J54: =$C$2*'30 Year Model'!$O15 -> -14496.5316
B55: Total Noncurrent Assets | C55: =C53+C54 -> 715000 | E55: =E53+E54 -> 1361400 | G55: 8 | I55: =$C$2*'10 Year Model'!O16 -> -14272.87888 | J55: =$C$2*'30 Year Model'!$O16 -> -14392.34555
B56: Total Assets | C56: =C51+C55 -> 957000 | E56: =E51+E55 -> 1531400 | G56: 9 | I56: =$C$2*'10 Year Model'!O17 -> -14179.04761 | J56: =$C$2*'30 Year Model'!$O17 -> -14298.51428
G57: 10 | I57: =$C$2*'10 Year Model'!O18 -> 410501.8755 | J57: =$C$2*'30 Year Model'!$O18 -> -14215.99119
B58: Liabilities | G58: 11 | J58: =$C$2*'30 Year Model'!$O19 -> -14145.79354
B59: Current Liabilities | G59: 12 | J59: =$C$2*'30 Year Model'!$O20 -> -14089.00638
B60: Operating notes payable | C60: =C33 -> 92000 | E60: =IF((C49+H47)<0,C60-(C49+H47),C60) -> 186400 | G60: 13 | J60: =$C$2*'30 Year Model'!$O21 -> -14046.7868
B61: Other current liabilities | C61: =C34 -> 32000 | E61: =C61+'10 Year Model'!I9*NoAcres -> 45048.58735 | G61: 14 | J61: =$C$2*'30 Year Model'!$O22 -> -14020.36834
B62: Total Current Liabilities | C62: =C61+C60 -> 124000 | E62: =E61+E60 -> 231448.5873 | G62: 15 | J62: =$C$2*'30 Year Model'!$O23 -> -14011.06577
B63: Noncurrent Liabilities | C63: =C36 -> 325000 | E63: =C63+NoAcres*Aprice*(1-DownPay)-'10 Year Model'!I9*NoAcres -> 791951.4127 | G63: 16 | J63: =$C$2*'30 Year Model'!$O24 -> -14020.28004
B64: Total Liabilities | C64: =C63+C62 -> 449000 | E64: =E63+E62 -> 1023400 | G64: 17 | J64: =$C$2*'30 Year Model'!$O25 -> -14049.50368
G65: 18 | J65: =$C$2*'30 Year Model'!$O26 -> -14100.32637
B66: Total Equity | C66: =C56-C64 -> 508000 | E66: =E56-E64 -> 508000 | G66: 19 | J66: =$C$2*'30 Year Model'!$O27 -> -14174.44098
G67: 20 | J67: =$C$2*'30 Year Model'!$O28 -> -14273.64985
B68: Debt to Asset Ratio | C68: =C64/C56 -> 0.4691745037 | E68: =E64/E56 -> 0.6682773932 | G68: 21 | J68: =$C$2*'30 Year Model'!$O29 -> 27448.71574
B69: Current Ratio | C69: =IF(C62>0,C51/C62,NA) -> 1.951612903 | E69: =IF(E62>0,E51/E62,NA) -> 0.734504375 | G69: 22 | J69: =$C$2*'30 Year Model'!$O30 -> 27996.49538
G70: 23 | J70: =$C$2*'30 Year Model'!$O31 -> 28555.23063
G71: 24 | J71: =$C$2*'30 Year Model'!$O32 -> 29125.14057
B72: Income Summary | C72: Pre-Investment | E72: Post-Investment | G72: 25 | J72: =$C$2*'30 Year Model'!$O33 -> 29706.44872
G73: 26 | J73: =$C$2*'30 Year Model'!$O34 -> 30299.38302
B74: Gross Revenue Less Operating Expenses | C74: =C7-C8 -> 165000 | E74: =C74+'10 Year Model'!D9*NoAcres-'10 Year Model'!E9*NoAcres+(price10*closing/10)*NoAcres -> 190600 | G74: 27 | J74: =$C$2*'30 Year Model'!$O35 -> 30904.17602
B75: Depreciation | C75: =C9 -> 43912 | E75: =C75+'10 Year Model'!J9*NoAcres -> 43912 | G75: 28 | J75: =$C$2*'30 Year Model'!$O36 -> 31521.06487
B76: Interest Expense on Operating | C76: =C10 -> 12500 | E76: =C76/C60*E60 -> 25326.08696 | G76: 29 | J76: =$C$2*'30 Year Model'!$O37 -> 32150.2915
B77: Interest Expense on Term Debt | C77: =C11 -> 19500 | E77: ='10 Year Model'!H9*NoAcres+C77 -> 48300 | G77: 30 | J77: =$C$2*'30 Year Model'!$O38 -> 1074757.576
G78: Capital Debt Capacity Sensitivity
B79: Net Farm Income From Operations | C79: =C74-SUM(C75:C77) -> 89088 | E79: =E74-SUM(E75:E77) -> 73061.91304 | G79: Estimated Impact of Gross Revenue Change on Capital Debt Replacement Margin
B81: Non-farm Income | C81: =C15 -> 12000 | E81: =C81 -> 12000
B82: Income Taxes | C82: =C18 -> 20750 | E82: =C82+('10 Year Model'!D9-'10 Year Model'!E9-'10 Year Model'!H9)*(IncomeTax)*NoAcres -> 19674.8
B84: Net Income | C84: =C79+C81-C82 -> 80338 | E84: =E79+E81-E82 -> 65387.11304
B86: Rate of Return on Assets | C86: =(C84+C76+C77-C93)/C56 -> 0.04946499478 | E86: =(E84+E76+E77-E93)/E56 -> 0.04833041661
B87: Rate of Return on Equity | C87: =(C84-C93)/C66 -> 0.03019291339 | E87: =(E84-E93)/E66 -> 0.0007620335502
B89: Capital Debt Repayment Capacity | C89: =C72 -> Pre-Investment | E89: Post-Investment
B91: Net Income | C91: =C84 -> 80338 | E91: =E84 -> 65387.11304
B92: PLUS: Depreciation | C92: =C75 -> 43912 | E92: =C92+'10 Year Model'!J9*NoAcres -> 43912
B93: LESS: Family Withdrawals | C93: =C16 -> 65000 | E93: =C93 -> 65000
G94: Estimated decrease in revenue | I94: Pre-Investment | J94: Post-Investment
B95: Capital Replacement and Term Debt Capacity | C95: =C91+C92-C93 -> 59250 | E95: =E91+E92-E93 -> 44299.11304 | G95: to reduce margin to 0 | I95: =IF(C98>0,C98/U2,"NA") -> 0.08734309623 | J95: =IF(E98>0,E98/V2,"NA") -> 0.02490304499
B96: LESS: Scheduled Principal Payments | C96: =C17 -> 17500 | E96: =C96+'10 Year Model'!I9*NoAcres -> 30548.58735
G97: Capital Debt Capacity Sensitivity
B98: Capital Replacement and Term Debt Margin | C98: =C95-C96 -> 41750 | E98: =E95-E96 -> 13750.52569 | G98: Estimated Impact of Operating Cost Change on Capital Debt Replacement Margin
B100: Term Debt and Capital Lease Ratio | C100: =(C98+C96+C11)/+(C96+C77) -> 2.128378378 | E100: =(E98+E96+E77)/+(E96+E77) -> 1.174391529
G113: Estimated increase in operating | I113: Pre-Investment | J113: Post-Investment
G114: costs to reduce margin to 0 | I114: =IF(C98>0,C98/U3,"NA") -> 0.1333865815 | J114: =IF(E98>0,E98/V3,"NA") -> 0.03803084826

Sheet Sensitivity Tables
F1: Land Purchase Analysis: Sensitivity Tables | V1: 0
B2: Farmland Bid Price Estimator
F3: Maximum Bid Prices:
F4: 5 Year Horizon | H4: =IF('5 Year Model'!O24<0,"NA",'5 Year Model'!O24) -> 6929.9
B5: ='Cash Budgets'!A33 -> Net Cash Flow: year 1 | C5: =CashFlows -> 350 | F5: 10 Year Horizon | H5: =IF('10 Year Model'!O28<0,"NA",'10 Year Model'!O28) -> 8091.02
B6: Annual growth rate of net cash flows | C6: =CashFlowGr -> 0.02 | F6: 30 Year Horizon | H6: =IF('30 Year Model'!O48>0,'30 Year Model'!O48,"NA") -> 9622.21
B7: Annual growth rate of land values | C7: =LandGr -> 0.02
B8: Marginal income tax rate | C8: =MTR -> 0.28 | F8: Bid Prices at Alternative After-tax Investment Returns
B9: Capital gains tax rate | C9: =CGTR -> 0.15 | G9: After-tax Investment Return
B10: Property tax rate | C10: =PropertyTaxAc/Aprice -> 0.00375 | G10: =H10-range/4 -> 0.03 | H10: =I10-range/4 -> 0.035 | I10: =discount -> 0.04 | J10: =I10+range/4 -> 0.045 | K10: =J10+range/4 -> 0.05
B11: After-tax discount rate | C11: =DR -> 0.04 | F11: 5 Year Horizon | G11: =TRANSPOSE('5 Year Model'!P22:P26) -> 7633.81 | H11: 7265.4 | I11: 6929.9 | J11: 6625.12 | K11: 6346.46
B12: Closing fees (initial purchase) | C12: =ClosingFeeP -> 0.01 | F12: 10 Year Horizon | G12: =TRANSPOSE('10 Year Model'!P26:P30) -> 9358.9 | H12: 8677.03 | I12: 8091.02 | J12: 7581.93 | K12: 7135.58
B13: Selling fees (end of horizon) | C13: =SellingFeeP -> 0.04 | F13: 30 Year Horizon | G13: =TRANSPOSE('30 Year Model'!P46:P50) -> 13425.27 | H13: 11184.41 | I13: 9622.21 | J13: 8471.94 | K13: 7590.44
B14: Proportion financed | C14: =1-DownPay -> 0.75
B15: Amortization period | C15: =LoanLength -> 20 | F15: ="Cash Flow Sensitivity Analysis @ After-tax Investment Return = "&TEXT(I10,"0.0%") -> Cash Flow Sensitivity Analysis @ After-tax Investment Return = 4.0%
B16: Interest rate paid on debt | C16: =InterestRate -> 0.06 | G16: Change in Initial Net Cash Flow
B17: Investment yield sensitivity range | C17: =InvestS -> 0.02 | G17: =-cashsensitiviy/2 -> -0.05 | H17: =-cashsensitiviy/4 -> -0.025 | I17: 0 | J17: =+cashsensitiviy/4 -> 0.025 | K17: =2*cashsensitiviy/4 -> 0.05
B18: Analysis price | C18: =Aprice -> 8000 | F18: Net Cash Flow -> | G18: =(1+G17)*CF -> 332.5 | H18: =(1+H17)*CF -> 341.25 | I18: =(1+I17)*CF -> 350 | J18: =(1+J17)*CF -> 358.75 | K18: =(1+K17)*CF -> 367.5
F19: 5 Year Horizon | G19: ='5 Year Model'!R48 -> 6550.9 | H19: ='5 Year Model'!R49 -> 6740.41 | I19: =I11 -> 6929.9 | J19: ='5 Year Model'!R51 -> 7119.4 | K19: ='5 Year Model'!R52 -> 7308.8561
F20: 10 Year Horizon | G20: ='10 Year Model'!R48 -> 7648.52 | H20: ='10 Year Model'!R49 -> 7869.78 | I20: =I12 -> 8091.02 | J20: ='10 Year Model'!R51 -> 8312.25 | K20: ='10 Year Model'!R52 -> 8533.47
F21: 30 Year Horizon | G21: ='30 Year Model'!R48 -> 9095.99 | H21: ='30 Year Model'!R49 -> 9359.11 | I21: =I13 -> 9622.21 | J21: ='30 Year Model'!R51 -> 9885.32 | K21: ='30 Year Model'!R52 -> 10148.42
F23: Bid Prices at Alternative Growth Rates
H24: Growth Rate: Net Cash Flows & Land Values
F25: Growth rate -> | H25: 0 | I25: 0.01 | J25: 0.03 | K25: 0.05 | M25: =J55 -> 0.02524208986 | N25: =J56 -> 0.01962668267 | O25: =J57 -> 0.01469763374
F26: 5 Year Horizon | H26: =TRANSPOSE('5 Year Model'!P28:P31) -> 4586.85 | I26: 5520.47 | J26: 9303.52 | K26: 29469.41 | M26: =analysis -> 8000
F27: 10 Year Horizon | H27: =TRANSPOSE('10 Year Model'!P32:P35) -> 5023.38 | I27: 6199.87 | J27: 11631.96 | K27: 91355.81 | N27: =M26 -> 8000
F28: 30 Year Horizon | H28: =TRANSPOSE('30 Year Model'!P52:P55) -> 5437.28 | I28: 6956.46 | J28: 15515.89 | K28: NA | O28: =N27 -> 8000
F30: ="Analysis price = $"&TEXT(C18,"0,000") -> Analysis price = $8,000 | H30: Initial Cash Flow Needed to Achieve Return
G31: After-tax Investment Yield | I31: =G10 -> 0.03 | J31: =I10 -> 0.04 | K31: =K10 -> 0.05
F32: 5 Year Horizon | G32: ='5 Year Model'!Q14 -> 0.02550288987 | I32: =CFlow5L -> 365.3506667 | J32: =CFlow5B -> 399.4131069 | K32: =CFlow5H -> 433.3751872
F33: 10 Year Horizon | G33: ='10 Year Model'!Q19 -> 0.0408450988 | I33: =CFlow10L -> 303.5362327 | J33: =CFlow10B -> 346.4008543 | K33: =CFlow10H -> 388.7658026
B34: =IF(ROUND(C34,2)=0,0,1) -> 1 | C34: ='5 Year Model'!O15+'10 Year Model'!O20+'30 Year Model'!O40+C38+C37-range-analysis -> 715.79 | F34: 30 Year Horizon
C37: 0.02
C38: 8000 | F38: 30 Year Horizon | G38: ='30 Year Model'!Q39 -> 0.04752167523 | I38: =CFlow30L -> 220.6853102 | J38: =CFlow30B -> 296.0513293 | K38: =CFlow30H -> 367.266133
F40: ="Analysis price = $"&TEXT(C18,"0,000") -> Analysis price = $8,000 | H40: Cash Flow Growth to Achieve Yield
G41: After-tax Investment Yield | I41: =I31 -> 0.03 | J41: =J31 -> 0.04 | K41: =K31 -> 0.05
F42: 5 Year Horizon | G42: =G32 -> 0.02550288987
F43: 10 Year Horizon | G43: =G33 -> 0.0408450988
F44: 30 Year Horizon | G44: =G38 -> 0.04752167523
F46: ="Analysis price = $"&TEXT(C18,"0,000") -> Analysis price = $8,000 | H46: Land Appreciation Needed to Achieve Yield
G47: After-tax Investment Yield | I47: =I37 -> 0 | J47: =J37 -> 0 | K47: =K37 -> 0
F48: 5 Year Horizon | G48: =G42 -> 0.02550288987
F49: 10 Year Horizon | G49: =G43 -> 0.0408450988
F50: 30 Year Horizon | G50: =G44 -> 0.04752167523
F52: ="Analysis price = $"&TEXT(C18,"0,000") -> Analysis price = $8,000 | I52: Growth Rates :Cash Flows & Land Values
F53: ="Net cash flow = "&TEXT(CF,"$0") -> Net cash flow = $350 | I53: Needed to Achieve After-Tax Investment Return
F54: After-tax Investment Return -> | I54: =I31 -> 0.03 | J54: =J31 -> 0.04 | K54: =K31 -> 0.05
F55: 5 Year Horizon | I55: =gr5_L -> 0.02160910488 | J55: =gr5_b -> 0.02524208986 | K55: =gr5_h -> 0.02895108175
F56: 10 Year Horizon | I56: =gr10_l -> 0.01529036229 | J56: =gr10_b -> 0.01962668267 | K56: =gr10_h -> 0.02411223599
F57: 30 Year Horizon | I57: =gr30_l -> 0.007676068258 | J57: =gr30_b -> 0.01469763374 | K57: =gr30_h -> 0.02175251179
A95: 8000
A96: 8000
A97: 8000

Sheet Cash Budgets
B2: Cash Budget for Investment
A3: Net Cash Flow Calculations | B3: Enterprise 1 | C3: Enterprise 2 | D3: Enterprise 3 | E3: Total
A5: % Total Investment | B5: 0 | C5: 0 | D5: 0 | E5: =SUM(B5:D5) -> 0
A6: Market price per unit | B6: 0 | C6: 0 | D6: 0
A7: Average production units (bu./acre) | B7: 0 | C7: 0 | D7: 0
A8: Other income/cash rent received | B8: 0 | C8: 0 | D8: 0
A9: Total revenue | B9: =B6*B7+B8 -> 0 | C9: =C6*C7+C8 -> 0 | D9: =D6*D7+D8 -> 0 | E9: =D9*$D$5+C9*$C$5+$B$5*B9 -> 0
A10: Expenses(exclude property taxes entered in model)
A12: Fertilizer | B12: 0 | C12: 0 | D12: 0 | E12: =D12*$D$5+C12*$C$5+$B$5*B12 -> 0
A13: Chemical | B13: 0 | C13: 0 | D13: 0 | E13: 0
A14: Seed | B14: 0 | C14: 0 | D14: 0 | E14: 0
A15: Utilities | B15: 0 | C15: 0 | D15: 0 | E15: 0
A16: Insurance | B16: 0 | C16: 0 | D16: 0 | E16: 0
A17: Salary and labor expense | B17: 0 | C17: 0 | D17: 0 | E17: 0
A18: Repairs | B18: 0 | C18: 0 | D18: 0 | E18: 0
A19: Machine hire | B19: 0 | C19: 0 | D19: 0 | E19: 0
A20: Fuel and transportation costs | B20: 0 | C20: 0 | D20: 0 | E20: 0
A21: Selling and advertising expenses | B21: 0 | C21: 0 | D21: 0 | E21: 0
A22: Building repairs | B22: 0 | C22: 0 | D22: 0 | E22: 0
A23: Storage & drying | B23: 0 | C23: 0 | D23: 0 | E23: 0
A24: Other operating expenses | B24: 0 | C24: 0 | D24: 0 | E24: 0
A26: Sub-total | B26: =SUM(B12:B24) -> 0 | C26: =SUM(C12:C24) -> 0 | D26: =SUM(D12:D24) -> 0 | E26: 0
A28: Working Capital & Nonreal Estate Interest | B28: 0 | C28: 0 | D28: 0 | E28: 0
A29: Depreciation Expense | B29: 0 | C29: 0 | D29: 0 | E29: 0
A31: Total Expenses | B31: =SUM(B26:B29) -> 0 | C31: =SUM(C26:C29) -> 0 | D31: =SUM(D26:D29) -> 0 | E31: 0
A33: Net Cash Flow: year 1 | B33: =B9-B31 -> 0 | C33: =C9-C31 -> 0 | D33: =D9-D31 -> 0 | E33: =D33*$D$5+C33*$C$5+$B$5*B33 -> 0

Sheet Cash Flows (hidden)
E2: Number of Acres | F2: 1 | X2: =IF(X3=V3,1,IF(V4=X3,2,3)) -> 2 | Z2: =IF(year=1,'5 Year Model'!AA1:AI1,IF(year=2,'10 Year Model'!AA1:AI1,'30 Year Model'!AA1:AI1)) -> 
V3: 5 Year Model | X3: 10 Year Model | Z3: Model | AC3: Max Bid Price
E4: Analysis Price | F4: =analysis -> 8000 | V4: 10 Year Model | Z4: Analysis Price/Acre | AC4: =IF(year=1,'Sensitivity Tables'!A95,IF(year=2,'Sensitivity Tables'!A96,'Sensitivity Tables'!A97)) -> 8000 | AF4: =IF(year=1,'5 Year Model'!AG2:AO2,IF(year=2,'10 Year Model'!AG2:AO2,'30 Year Model'!AG2:AO2)) ->  | AH4: =IF(year=1,'5 Year Model'!AI2:AQ2,IF(year=2,'10 Year Model'!AI2:AQ2,'30 Year Model'!AI2:AQ2)) -> 
V5: 30 Year Model | Z5: Acres | AF5: =IF(year=1,'5 Year Model'!AG3:AO3,IF(year=2,'10 Year Model'!AG3:AO3,'30 Year Model'!AG3:AO3)) ->  | AG5: =IF(year=1,'5 Year Model'!AH3:AP3,IF(year=2,'10 Year Model'!AH3:AP3,'30 Year Model'!AH3:AP3)) ->  | AH5: =IF(year=1,'5 Year Model'!AI3:AQ3,IF(year=2,'10 Year Model'!AI3:AQ3,'30 Year Model'!AI3:AQ3)) -> 
Z6: Total Purchase | AB6: =IF(year=1,'5 Year Model'!AC4:AK4,IF(year=2,'10 Year Model'!AC4:AK4,'30 Year Model'!AC4:AK4)) ->  | AF6: =IF(year=1,'5 Year Model'!AG4:AO4,IF(year=2,'10 Year Model'!AG4:AO4,'30 Year Model'!AG4:AO4)) -> 
AA7: =IF(year=1,'5 Year Model'!AB5:AJ5,IF(year=2,'10 Year Model'!AB5:AJ5,'30 Year Model'!AB5:AJ5)) ->  | AB7: =IF(year=1,'5 Year Model'!AC5:AK5,IF(year=2,'10 Year Model'!AC5:AK5,'30 Year Model'!AC5:AK5)) ->  | AC7: =IF(year=1,'5 Year Model'!AD5:AL5,IF(year=2,'10 Year Model'!AD5:AL5,'30 Year Model'!AD5:AL5)) ->  | AD7: =IF(year=1,'5 Year Model'!AE5:AM5,IF(year=2,'10 Year Model'!AE5:AM5,'30 Year Model'!AE5:AM5)) ->  | AE7: =IF(year=1,'5 Year Model'!AF5:AN5,IF(year=2,'10 Year Model'!AF5:AN5,'30 Year Model'!AF5:AN5)) ->  | AF7: =IF(year=1,'5 Year Model'!AG5:AO5,IF(year=2,'10 Year Model'!AG5:AO5,'30 Year Model'!AG5:AO5)) ->  | AG7: =IF(year=1,'5 Year Model'!AH5:AP5,IF(year=2,'10 Year Model'!AH5:AP5,'30 Year Model'!AH5:AP5)) ->  | AH7: =IF(year=1,'5 Year Model'!AI5:AQ5,IF(year=2,'10 Year Model'!AI5:AQ5,'30 Year Model'!AI5:AQ5)) -> 
Z8: =IF(year=1,'5 Year Model'!AA6:AI6,IF(year=2,'10 Year Model'!AA6:AI6,'30 Year Model'!AA6:AI6)) ->  | AA8: =IF(year=1,'5 Year Model'!AB6:AJ6,IF(year=2,'10 Year Model'!AB6:AJ6,'30 Year Model'!AB6:AJ6)) ->  | AB8: =IF(year=1,'5 Year Model'!AC6:AK6,IF(year=2,'10 Year Model'!AC6:AK6,'30 Year Model'!AC6:AK6)) ->  | AC8: =IF(year=1,'5 Year Model'!AD6:AL6,IF(year=2,'10 Year Model'!AD6:AL6,'30 Year Model'!AD6:AL6)) ->  | AD8: =IF(year=1,'5 Year Model'!AE6:AM6,IF(year=2,'10 Year Model'!AE6:AM6,'30 Year Model'!AE6:AM6)) ->  | AE8: =IF(year=1,'5 Year Model'!AF6:AN6,IF(year=2,'10 Year Model'!AF6:AN6,'30 Year Model'!AF6:AN6)) ->  | AF8: =IF(year=1,'5 Year Model'!AG6:AO6,IF(year=2,'10 Year Model'!AG6:AO6,'30 Year Model'!AG6:AO6)) ->  | AG8: =IF(year=1,'5 Year Model'!AH6:AP6,IF(year=2,'10 Year Model'!AH6:AP6,'30 Year Model'!AH6:AP6)) ->  | AH8: =IF(year=1,'5 Year Model'!AI6:AQ6,IF(year=2,'10 Year Model'!AI6:AQ6,'30 Year Model'!AI6:AQ6)) -> 
AA9: =IF(year=1,'5 Year Model'!AB7:AJ7,IF(year=2,'10 Year Model'!AB7:AJ7,'30 Year Model'!AB7:AJ7)) ->  | AB9: =IF(year=1,'5 Year Model'!AC7:AK7,IF(year=2,'10 Year Model'!AC7:AK7,'30 Year Model'!AC7:AK7)) ->  | AC9: =IF(year=1,'5 Year Model'!AD7:AL7,IF(year=2,'10 Year Model'!AD7:AL7,'30 Year Model'!AD7:AL7)) ->  | AD9: =IF(year=1,'5 Year Model'!AE7:AM7,IF(year=2,'10 Year Model'!AE7:AM7,'30 Year Model'!AE7:AM7)) ->  | AE9: =IF(year=1,'5 Year Model'!AF7:AN7,IF(year=2,'10 Year Model'!AF7:AN7,'30 Year Model'!AF7:AN7)) ->  | AF9: =IF(year=1,'5 Year Model'!AG7:AO7,IF(year=2,'10 Year Model'!AG7:AO7,'30 Year Model'!AG7:AO7)) ->  | AG9: =IF(year=1,'5 Year Model'!AH7:AP7,IF(year=2,'10 Year Model'!AH7:AP7,'30 Year Model'!AH7:AP7)) ->  | AH9: =IF(year=1,'5 Year Model'!AI7:AQ7,IF(year=2,'10 Year Model'!AI7:AQ7,'30 Year Model'!AI7:AQ7)) -> 
Z10: =IF(year=1,'5 Year Model'!AA8:AI8,IF(year=2,'10 Year Model'!AA8:AI8,'30 Year Model'!AA8:AI8)) ->  | AA10: =IF(year=1,'5 Year Model'!AB8:AJ8,IF(year=2,'10 Year Model'!AB8:AJ8,'30 Year Model'!AB8:AJ8)) ->  | AB10: =IF(year=1,'5 Year Model'!AC8:AK8,IF(year=2,'10 Year Model'!AC8:AK8,'30 Year Model'!AC8:AK8)) ->  | AC10: =IF(year=1,'5 Year Model'!AD8:AL8,IF(year=2,'10 Year Model'!AD8:AL8,'30 Year Model'!AD8:AL8)) ->  | AD10: =IF(year=1,'5 Year Model'!AE8:AM8,IF(year=2,'10 Year Model'!AE8:AM8,'30 Year Model'!AE8:AM8)) ->  | AE10: =IF(year=1,'5 Year Model'!AF8:AN8,IF(year=2,'10 Year Model'!AF8:AN8,'30 Year Model'!AF8:AN8)) ->  | AF10: =IF(year=1,'5 Year Model'!AG8:AO8,IF(year=2,'10 Year Model'!AG8:AO8,'30 Year Model'!AG8:AO8)) ->  | AG10: =IF(year=1,'5 Year Model'!AH8:AP8,IF(year=2,'10 Year Model'!AH8:AP8,'30 Year Model'!AH8:AP8)) ->  | AH10: =IF(year=1,'5 Year Model'!AI8:AQ8,IF(year=2,'10 Year Model'!AI8:AQ8,'30 Year Model'!AI8:AQ8)) -> 
Z11: =IF(year=1,'5 Year Model'!AA9:AI9,IF(year=2,'10 Year Model'!AA9:AI9,'30 Year Model'!AA9:AI9)) ->  | AA11: =IF(year=1,'5 Year Model'!AB9:AJ9,IF(year=2,'10 Year Model'!AB9:AJ9,'30 Year Model'!AB9:AJ9)) ->  | AB11: =IF(year=1,'5 Year Model'!AC9:AK9,IF(year=2,'10 Year Model'!AC9:AK9,'30 Year Model'!AC9:AK9)) ->  | AC11: =IF(year=1,'5 Year Model'!AD9:AL9,IF(year=2,'10 Year Model'!AD9:AL9,'30 Year Model'!AD9:AL9)) ->  | AD11: =IF(year=1,'5 Year Model'!AE9:AM9,IF(year=2,'10 Year Model'!AE9:AM9,'30 Year Model'!AE9:AM9)) ->  | AE11: =IF(year=1,'5 Year Model'!AF9:AN9,IF(year=2,'10 Year Model'!AF9:AN9,'30 Year Model'!AF9:AN9)) ->  | AF11: =IF(year=1,'5 Year Model'!AG9:AO9,IF(year=2,'10 Year Model'!AG9:AO9,'30 Year Model'!AG9:AO9)) ->  | AG11: =IF(year=1,'5 Year Model'!AH9:AP9,IF(year=2,'10 Year Model'!AH9:AP9,'30 Year Model'!AH9:AP9)) ->  | AH11: =IF(year=1,'5 Year Model'!AI9:AQ9,IF(year=2,'10 Year Model'!AI9:AQ9,'30 Year Model'!AI9:AQ9)) -> 
Z12: =IF(year=1,'5 Year Model'!AA10:AI10,IF(year=2,'10 Year Model'!AA10:AI10,'30 Year Model'!AA10:AI10)) ->  | AA12: =IF(year=1,'5 Year Model'!AB10:AJ10,IF(year=2,'10 Year Model'!AB10:AJ10,'30 Year Model'!AB10:AJ10)) ->  | AB12: =IF(year=1,'5 Year Model'!AC10:AK10,IF(year=2,'10 Year Model'!AC10:AK10,'30 Year Model'!AC10:AK10)) ->  | AC12: =IF(year=1,'5 Year Model'!AD10:AL10,IF(year=2,'10 Year Model'!AD10:AL10,'30 Year Model'!AD10:AL10)) ->  | AD12: =IF(year=1,'5 Year Model'!AE10:AM10,IF(year=2,'10 Year Model'!AE10:AM10,'30 Year Model'!AE10:AM10)) ->  | AE12: =IF(year=1,'5 Year Model'!AF10:AN10,IF(year=2,'10 Year Model'!AF10:AN10,'30 Year Model'!AF10:AN10)) ->  | AF12: =IF(year=1,'5 Year Model'!AG10:AO10,IF(year=2,'10 Year Model'!AG10:AO10,'30 Year Model'!AG10:AO10)) ->  | AG12: =IF(year=1,'5 Year Model'!AH10:AP10,IF(year=2,'10 Year Model'!AH10:AP10,'30 Year Model'!AH10:AP10)) ->  | AH12: =IF(year=1,'5 Year Model'!AI10:AQ10,IF(year=2,'10 Year Model'!AI10:AQ10,'30 Year Model'!AI10:AQ10)) -> 
Z13: =IF(year=1,'5 Year Model'!AA11:AI11,IF(year=2,'10 Year Model'!AA11:AI11,'30 Year Model'!AA11:AI11)) ->  | AA13: =IF(year=1,'5 Year Model'!AB11:AJ11,IF(year=2,'10 Year Model'!AB11:AJ11,'30 Year Model'!AB11:AJ11)) ->  | AB13: =IF(year=1,'5 Year Model'!AC11:AK11,IF(year=2,'10 Year Model'!AC11:AK11,'30 Year Model'!AC11:AK11)) ->  | AC13: =IF(year=1,'5 Year Model'!AD11:AL11,IF(year=2,'10 Year Model'!AD11:AL11,'30 Year Model'!AD11:AL11)) ->  | AD13: =IF(year=1,'5 Year Model'!AE11:AM11,IF(year=2,'10 Year Model'!AE11:AM11,'30 Year Model'!AE11:AM11)) ->  | AE13: =IF(year=1,'5 Year Model'!AF11:AN11,IF(year=2,'10 Year Model'!AF11:AN11,'30 Year Model'!AF11:AN11)) ->  | AF13: =IF(year=1,'5 Year Model'!AG11:AO11,IF(year=2,'10 Year Model'!AG11:AO11,'30 Year Model'!AG11:AO11)) ->  | AG13: =IF(year=1,'5 Year Model'!AH11:AP11,IF(year=2,'10 Year Model'!AH11:AP11,'30 Year Model'!AH11:AP11)) ->  | AH13: =IF(year=1,'5 Year Model'!AI11:AQ11,IF(year=2,'10 Year Model'!AI11:AQ11,'30 Year Model'!AI11:AQ11)) -> 
Z14: =IF(year=1,'5 Year Model'!AA12:AI12,IF(year=2,'10 Year Model'!AA12:AI12,'30 Year Model'!AA12:AI12)) ->  | AA14: =IF(year=1,'5 Year Model'!AB12:AJ12,IF(year=2,'10 Year Model'!AB12:AJ12,'30 Year Model'!AB12:AJ12)) ->  | AB14: =IF(year=1,'5 Year Model'!AC12:AK12,IF(year=2,'10 Year Model'!AC12:AK12,'30 Year Model'!AC12:AK12)) ->  | AC14: =IF(year=1,'5 Year Model'!AD12:AL12,IF(year=2,'10 Year Model'!AD12:AL12,'30 Year Model'!AD12:AL12)) ->  | AD14: =IF(year=1,'5 Year Model'!AE12:AM12,IF(year=2,'10 Year Model'!AE12:AM12,'30 Year Model'!AE12:AM12)) ->  | AE14: =IF(year=1,'5 Year Model'!AF12:AN12,IF(year=2,'10 Year Model'!AF12:AN12,'30 Year Model'!AF12:AN12)) ->  | AF14: =IF(year=1,'5 Year Model'!AG12:AO12,IF(year=2,'10 Year Model'!AG12:AO12,'30 Year Model'!AG12:AO12)) ->  | AG14: =IF(year=1,'5 Year Model'!AH12:AP12,IF(year=2,'10 Year Model'!AH12:AP12,'30 Year Model'!AH12:AP12)) ->  | AH14: =IF(year=1,'5 Year Model'!AI12:AQ12,IF(year=2,'10 Year Model'!AI12:AQ12,'30 Year Model'!AI12:AQ12)) -> 
Z15: =IF(year=1,'5 Year Model'!AA13:AI13,IF(year=2,'10 Year Model'!AA13:AI13,'30 Year Model'!AA13:AI13)) ->  | AA15: =IF(year=1,'5 Year Model'!AB13:AJ13,IF(year=2,'10 Year Model'!AB13:AJ13,'30 Year Model'!AB13:AJ13)) ->  | AB15: =IF(year=1,'5 Year Model'!AC13:AK13,IF(year=2,'10 Year Model'!AC13:AK13,'30 Year Model'!AC13:AK13)) ->  | AC15: =IF(year=1,'5 Year Model'!AD13:AL13,IF(year=2,'10 Year Model'!AD13:AL13,'30 Year Model'!AD13:AL13)) ->  | AD15: =IF(year=1,'5 Year Model'!AE13:AM13,IF(year=2,'10 Year Model'!AE13:AM13,'30 Year Model'!AE13:AM13)) ->  | AE15: =IF(year=1,'5 Year Model'!AF13:AN13,IF(year=2,'10 Year Model'!AF13:AN13,'30 Year Model'!AF13:AN13)) ->  | AF15: =IF(year=1,'5 Year Model'!AG13:AO13,IF(year=2,'10 Year Model'!AG13:AO13,'30 Year Model'!AG13:AO13)) ->  | AG15: =IF(year=1,'5 Year Model'!AH13:AP13,IF(year=2,'10 Year Model'!AH13:AP13,'30 Year Model'!AH13:AP13)) ->  | AH15: =IF(year=1,'5 Year Model'!AI13:AQ13,IF(year=2,'10 Year Model'!AI13:AQ13,'30 Year Model'!AI13:AQ13)) -> 
Z16: =IF(year=1,'5 Year Model'!AA14:AI14,IF(year=2,'10 Year Model'!AA14:AI14,'30 Year Model'!AA14:AI14)) ->  | AA16: =IF(year=1,'5 Year Model'!AB14:AJ14,IF(year=2,'10 Year Model'!AB14:AJ14,'30 Year Model'!AB14:AJ14)) ->  | AB16: =IF(year=1,'5 Year Model'!AC14:AK14,IF(year=2,'10 Year Model'!AC14:AK14,'30 Year Model'!AC14:AK14)) ->  | AC16: =IF(year=1,'5 Year Model'!AD14:AL14,IF(year=2,'10 Year Model'!AD14:AL14,'30 Year Model'!AD14:AL14)) ->  | AD16: =IF(year=1,'5 Year Model'!AE14:AM14,IF(year=2,'10 Year Model'!AE14:AM14,'30 Year Model'!AE14:AM14)) ->  | AE16: =IF(year=1,'5 Year Model'!AF14:AN14,IF(year=2,'10 Year Model'!AF14:AN14,'30 Year Model'!AF14:AN14)) ->  | AF16: =IF(year=1,'5 Year Model'!AG14:AO14,IF(year=2,'10 Year Model'!AG14:AO14,'30 Year Model'!AG14:AO14)) ->  | AG16: =IF(year=1,'5 Year Model'!AH14:AP14,IF(year=2,'10 Year Model'!AH14:AP14,'30 Year Model'!AH14:AP14)) ->  | AH16: =IF(year=1,'5 Year Model'!AI14:AQ14,IF(year=2,'10 Year Model'!AI14:AQ14,'30 Year Model'!AI14:AQ14)) -> 
Z17: =IF(year=1,'5 Year Model'!AA15:AI15,IF(year=2,'10 Year Model'!AA15:AI15,'30 Year Model'!AA15:AI15)) ->  | AA17: =IF(year=1,'5 Year Model'!AB15:AJ15,IF(year=2,'10 Year Model'!AB15:AJ15,'30 Year Model'!AB15:AJ15)) ->  | AB17: =IF(year=1,'5 Year Model'!AC15:AK15,IF(year=2,'10 Year Model'!AC15:AK15,'30 Year Model'!AC15:AK15)) ->  | AC17: =IF(year=1,'5 Year Model'!AD15:AL15,IF(year=2,'10 Year Model'!AD15:AL15,'30 Year Model'!AD15:AL15)) ->  | AD17: =IF(year=1,'5 Year Model'!AE15:AM15,IF(year=2,'10 Year Model'!AE15:AM15,'30 Year Model'!AE15:AM15)) ->  | AE17: =IF(year=1,'5 Year Model'!AF15:AN15,IF(year=2,'10 Year Model'!AF15:AN15,'30 Year Model'!AF15:AN15)) ->  | AF17: =IF(year=1,'5 Year Model'!AG15:AO15,IF(year=2,'10 Year Model'!AG15:AO15,'30 Year Model'!AG15:AO15)) ->  | AG17: =IF(year=1,'5 Year Model'!AH15:AP15,IF(year=2,'10 Year Model'!AH15:AP15,'30 Year Model'!AH15:AP15)) ->  | AH17: =IF(year=1,'5 Year Model'!AI15:AQ15,IF(year=2,'10 Year Model'!AI15:AQ15,'30 Year Model'!AI15:AQ15)) -> 
Z18: =IF(year=1,'5 Year Model'!AA16:AI16,IF(year=2,'10 Year Model'!AA16:AI16,'30 Year Model'!AA16:AI16)) ->  | AA18: =IF(year=1,'5 Year Model'!AB16:AJ16,IF(year=2,'10 Year Model'!AB16:AJ16,'30 Year Model'!AB16:AJ16)) ->  | AB18: =IF(year=1,'5 Year Model'!AC16:AK16,IF(year=2,'10 Year Model'!AC16:AK16,'30 Year Model'!AC16:AK16)) ->  | AC18: =IF(year=1,'5 Year Model'!AD16:AL16,IF(year=2,'10 Year Model'!AD16:AL16,'30 Year Model'!AD16:AL16)) ->  | AD18: =IF(year=1,'5 Year Model'!AE16:AM16,IF(year=2,'10 Year Model'!AE16:AM16,'30 Year Model'!AE16:AM16)) ->  | AE18: =IF(year=1,'5 Year Model'!AF16:AN16,IF(year=2,'10 Year Model'!AF16:AN16,'30 Year Model'!AF16:AN16)) ->  | AF18: =IF(year=1,'5 Year Model'!AG16:AO16,IF(year=2,'10 Year Model'!AG16:AO16,'30 Year Model'!AG16:AO16)) ->  | AG18: =IF(year=1,'5 Year Model'!AH16:AP16,IF(year=2,'10 Year Model'!AH16:AP16,'30 Year Model'!AH16:AP16)) ->  | AH18: =IF(year=1,'5 Year Model'!AI16:AQ16,IF(year=2,'10 Year Model'!AI16:AQ16,'30 Year Model'!AI16:AQ16)) -> 
Z19: =IF(year=1,'5 Year Model'!AA17:AI17,IF(year=2,'10 Year Model'!AA17:AI17,'30 Year Model'!AA17:AI17)) ->  | AA19: =IF(year=1,'5 Year Model'!AB17:AJ17,IF(year=2,'10 Year Model'!AB17:AJ17,'30 Year Model'!AB17:AJ17)) ->  | AB19: =IF(year=1,'5 Year Model'!AC17:AK17,IF(year=2,'10 Year Model'!AC17:AK17,'30 Year Model'!AC17:AK17)) ->  | AC19: =IF(year=1,'5 Year Model'!AD17:AL17,IF(year=2,'10 Year Model'!AD17:AL17,'30 Year Model'!AD17:AL17)) ->  | AD19: =IF(year=1,'5 Year Model'!AE17:AM17,IF(year=2,'10 Year Model'!AE17:AM17,'30 Year Model'!AE17:AM17)) ->  | AE19: =IF(year=1,'5 Year Model'!AF17:AN17,IF(year=2,'10 Year Model'!AF17:AN17,'30 Year Model'!AF17:AN17)) ->  | AF19: =IF(year=1,'5 Year Model'!AG17:AO17,IF(year=2,'10 Year Model'!AG17:AO17,'30 Year Model'!AG17:AO17)) ->  | AG19: =IF(year=1,'5 Year Model'!AH17:AP17,IF(year=2,'10 Year Model'!AH17:AP17,'30 Year Model'!AH17:AP17)) ->  | AH19: =IF(year=1,'5 Year Model'!AI17:AQ17,IF(year=2,'10 Year Model'!AI17:AQ17,'30 Year Model'!AI17:AQ17)) -> 
Z20: =IF(year=1,'5 Year Model'!AA18:AI18,IF(year=2,'10 Year Model'!AA18:AI18,'30 Year Model'!AA18:AI18)) ->  | AA20: =IF(year=1,'5 Year Model'!AB18:AJ18,IF(year=2,'10 Year Model'!AB18:AJ18,'30 Year Model'!AB18:AJ18)) ->  | AB20: =IF(year=1,'5 Year Model'!AC18:AK18,IF(year=2,'10 Year Model'!AC18:AK18,'30 Year Model'!AC18:AK18)) ->  | AC20: =IF(year=1,'5 Year Model'!AD18:AL18,IF(year=2,'10 Year Model'!AD18:AL18,'30 Year Model'!AD18:AL18)) ->  | AD20: =IF(year=1,'5 Year Model'!AE18:AM18,IF(year=2,'10 Year Model'!AE18:AM18,'30 Year Model'!AE18:AM18)) ->  | AE20: =IF(year=1,'5 Year Model'!AF18:AN18,IF(year=2,'10 Year Model'!AF18:AN18,'30 Year Model'!AF18:AN18)) ->  | AF20: =IF(year=1,'5 Year Model'!AG18:AO18,IF(year=2,'10 Year Model'!AG18:AO18,'30 Year Model'!AG18:AO18)) ->  | AG20: =IF(year=1,'5 Year Model'!AH18:AP18,IF(year=2,'10 Year Model'!AH18:AP18,'30 Year Model'!AH18:AP18)) ->  | AH20: =IF(year=1,'5 Year Model'!AI18:AQ18,IF(year=2,'10 Year Model'!AI18:AQ18,'30 Year Model'!AI18:AQ18)) -> 
Z21: =IF(year=1,'5 Year Model'!AA19:AI19,IF(year=2,'10 Year Model'!AA19:AI19,'30 Year Model'!AA19:AI19)) ->  | AA21: =IF(year=1,'5 Year Model'!AB19:AJ19,IF(year=2,'10 Year Model'!AB19:AJ19,'30 Year Model'!AB19:AJ19)) ->  | AB21: =IF(year=1,'5 Year Model'!AC19:AK19,IF(year=2,'10 Year Model'!AC19:AK19,'30 Year Model'!AC19:AK19)) ->  | AC21: =IF(year=1,'5 Year Model'!AD19:AL19,IF(year=2,'10 Year Model'!AD19:AL19,'30 Year Model'!AD19:AL19)) ->  | AD21: =IF(year=1,'5 Year Model'!AE19:AM19,IF(year=2,'10 Year Model'!AE19:AM19,'30 Year Model'!AE19:AM19)) ->  | AE21: =IF(year=1,'5 Year Model'!AF19:AN19,IF(year=2,'10 Year Model'!AF19:AN19,'30 Year Model'!AF19:AN19)) ->  | AF21: =IF(year=1,'5 Year Model'!AG19:AO19,IF(year=2,'10 Year Model'!AG19:AO19,'30 Year Model'!AG19:AO19)) ->  | AG21: =IF(year=1,'5 Year Model'!AH19:AP19,IF(year=2,'10 Year Model'!AH19:AP19,'30 Year Model'!AH19:AP19)) ->  | AH21: =IF(year=1,'5 Year Model'!AI19:AQ19,IF(year=2,'10 Year Model'!AI19:AQ19,'30 Year Model'!AI19:AQ19)) -> 
Z22: =IF(year=1,'5 Year Model'!AA20:AI20,IF(year=2,'10 Year Model'!AA20:AI20,'30 Year Model'!AA20:AI20)) ->  | AA22: =IF(year=1,'5 Year Model'!AB20:AJ20,IF(year=2,'10 Year Model'!AB20:AJ20,'30 Year Model'!AB20:AJ20)) ->  | AB22: =IF(year=1,'5 Year Model'!AC20:AK20,IF(year=2,'10 Year Model'!AC20:AK20,'30 Year Model'!AC20:AK20)) ->  | AC22: =IF(year=1,'5 Year Model'!AD20:AL20,IF(year=2,'10 Year Model'!AD20:AL20,'30 Year Model'!AD20:AL20)) ->  | AD22: =IF(year=1,'5 Year Model'!AE20:AM20,IF(year=2,'10 Year Model'!AE20:AM20,'30 Year Model'!AE20:AM20)) ->  | AE22: =IF(year=1,'5 Year Model'!AF20:AN20,IF(year=2,'10 Year Model'!AF20:AN20,'30 Year Model'!AF20:AN20)) ->  | AF22: =IF(year=1,'5 Year Model'!AG20:AO20,IF(year=2,'10 Year Model'!AG20:AO20,'30 Year Model'!AG20:AO20)) ->  | AG22: =IF(year=1,'5 Year Model'!AH20:AP20,IF(year=2,'10 Year Model'!AH20:AP20,'30 Year Model'!AH20:AP20)) ->  | AH22: =IF(year=1,'5 Year Model'!AI20:AQ20,IF(year=2,'10 Year Model'!AI20:AQ20,'30 Year Model'!AI20:AQ20)) -> 
Z23: =IF(year=1,'5 Year Model'!AA21:AI21,IF(year=2,'10 Year Model'!AA21:AI21,'30 Year Model'!AA21:AI21)) ->  | AA23: =IF(year=1,'5 Year Model'!AB21:AJ21,IF(year=2,'10 Year Model'!AB21:AJ21,'30 Year Model'!AB21:AJ21)) ->  | AB23: =IF(year=1,'5 Year Model'!AC21:AK21,IF(year=2,'10 Year Model'!AC21:AK21,'30 Year Model'!AC21:AK21)) ->  | AC23: =IF(year=1,'5 Year Model'!AD21:AL21,IF(year=2,'10 Year Model'!AD21:AL21,'30 Year Model'!AD21:AL21)) ->  | AD23: =IF(year=1,'5 Year Model'!AE21:AM21,IF(year=2,'10 Year Model'!AE21:AM21,'30 Year Model'!AE21:AM21)) ->  | AE23: =IF(year=1,'5 Year Model'!AF21:AN21,IF(year=2,'10 Year Model'!AF21:AN21,'30 Year Model'!AF21:AN21)) ->  | AF23: =IF(year=1,'5 Year Model'!AG21:AO21,IF(year=2,'10 Year Model'!AG21:AO21,'30 Year Model'!AG21:AO21)) ->  | AG23: =IF(year=1,'5 Year Model'!AH21:AP21,IF(year=2,'10 Year Model'!AH21:AP21,'30 Year Model'!AH21:AP21)) ->  | AH23: =IF(year=1,'5 Year Model'!AI21:AQ21,IF(year=2,'10 Year Model'!AI21:AQ21,'30 Year Model'!AI21:AQ21)) -> 
Z24: =IF(year=1,'5 Year Model'!AA22:AI22,IF(year=2,'10 Year Model'!AA22:AI22,'30 Year Model'!AA22:AI22)) ->  | AA24: =IF(year=1,'5 Year Model'!AB22:AJ22,IF(year=2,'10 Year Model'!AB22:AJ22,'30 Year Model'!AB22:AJ22)) ->  | AB24: =IF(year=1,'5 Year Model'!AC22:AK22,IF(year=2,'10 Year Model'!AC22:AK22,'30 Year Model'!AC22:AK22)) ->  | AC24: =IF(year=1,'5 Year Model'!AD22:AL22,IF(year=2,'10 Year Model'!AD22:AL22,'30 Year Model'!AD22:AL22)) ->  | AD24: =IF(year=1,'5 Year Model'!AE22:AM22,IF(year=2,'10 Year Model'!AE22:AM22,'30 Year Model'!AE22:AM22)) ->  | AE24: =IF(year=1,'5 Year Model'!AF22:AN22,IF(year=2,'10 Year Model'!AF22:AN22,'30 Year Model'!AF22:AN22)) ->  | AF24: =IF(year=1,'5 Year Model'!AG22:AO22,IF(year=2,'10 Year Model'!AG22:AO22,'30 Year Model'!AG22:AO22)) ->  | AG24: =IF(year=1,'5 Year Model'!AH22:AP22,IF(year=2,'10 Year Model'!AH22:AP22,'30 Year Model'!AH22:AP22)) ->  | AH24: =IF(year=1,'5 Year Model'!AI22:AQ22,IF(year=2,'10 Year Model'!AI22:AQ22,'30 Year Model'!AI22:AQ22)) -> 
Z25: =IF(year=1,'5 Year Model'!AA23:AI23,IF(year=2,'10 Year Model'!AA23:AI23,'30 Year Model'!AA23:AI23)) ->  | AA25: =IF(year=1,'5 Year Model'!AB23:AJ23,IF(year=2,'10 Year Model'!AB23:AJ23,'30 Year Model'!AB23:AJ23)) ->  | AB25: =IF(year=1,'5 Year Model'!AC23:AK23,IF(year=2,'10 Year Model'!AC23:AK23,'30 Year Model'!AC23:AK23)) ->  | AC25: =IF(year=1,'5 Year Model'!AD23:AL23,IF(year=2,'10 Year Model'!AD23:AL23,'30 Year Model'!AD23:AL23)) ->  | AD25: =IF(year=1,'5 Year Model'!AE23:AM23,IF(year=2,'10 Year Model'!AE23:AM23,'30 Year Model'!AE23:AM23)) ->  | AE25: =IF(year=1,'5 Year Model'!AF23:AN23,IF(year=2,'10 Year Model'!AF23:AN23,'30 Year Model'!AF23:AN23)) ->  | AF25: =IF(year=1,'5 Year Model'!AG23:AO23,IF(year=2,'10 Year Model'!AG23:AO23,'30 Year Model'!AG23:AO23)) ->  | AG25: =IF(year=1,'5 Year Model'!AH23:AP23,IF(year=2,'10 Year Model'!AH23:AP23,'30 Year Model'!AH23:AP23)) ->  | AH25: =IF(year=1,'5 Year Model'!AI23:AQ23,IF(year=2,'10 Year Model'!AI23:AQ23,'30 Year Model'!AI23:AQ23)) -> 
Z26: =IF(year=1,'5 Year Model'!AA24:AI24,IF(year=2,'10 Year Model'!AA24:AI24,'30 Year Model'!AA24:AI24)) ->  | AA26: =IF(year=1,'5 Year Model'!AB24:AJ24,IF(year=2,'10 Year Model'!AB24:AJ24,'30 Year Model'!AB24:AJ24)) ->  | AB26: =IF(year=1,'5 Year Model'!AC24:AK24,IF(year=2,'10 Year Model'!AC24:AK24,'30 Year Model'!AC24:AK24)) ->  | AC26: =IF(year=1,'5 Year Model'!AD24:AL24,IF(year=2,'10 Year Model'!AD24:AL24,'30 Year Model'!AD24:AL24)) ->  | AD26: =IF(year=1,'5 Year Model'!AE24:AM24,IF(year=2,'10 Year Model'!AE24:AM24,'30 Year Model'!AE24:AM24)) ->  | AE26: =IF(year=1,'5 Year Model'!AF24:AN24,IF(year=2,'10 Year Model'!AF24:AN24,'30 Year Model'!AF24:AN24)) ->  | AF26: =IF(year=1,'5 Year Model'!AG24:AO24,IF(year=2,'10 Year Model'!AG24:AO24,'30 Year Model'!AG24:AO24)) ->  | AG26: =IF(year=1,'5 Year Model'!AH24:AP24,IF(year=2,'10 Year Model'!AH24:AP24,'30 Year Model'!AH24:AP24)) ->  | AH26: =IF(year=1,'5 Year Model'!AI24:AQ24,IF(year=2,'10 Year Model'!AI24:AQ24,'30 Year Model'!AI24:AQ24)) -> 
Z27: =IF(year=1,'5 Year Model'!AA25:AI25,IF(year=2,'10 Year Model'!AA25:AI25,'30 Year Model'!AA25:AI25)) ->  | AA27: =IF(year=1,'5 Year Model'!AB25:AJ25,IF(year=2,'10 Year Model'!AB25:AJ25,'30 Year Model'!AB25:AJ25)) ->  | AB27: =IF(year=1,'5 Year Model'!AC25:AK25,IF(year=2,'10 Year Model'!AC25:AK25,'30 Year Model'!AC25:AK25)) ->  | AC27: =IF(year=1,'5 Year Model'!AD25:AL25,IF(year=2,'10 Year Model'!AD25:AL25,'30 Year Model'!AD25:AL25)) ->  | AD27: =IF(year=1,'5 Year Model'!AE25:AM25,IF(year=2,'10 Year Model'!AE25:AM25,'30 Year Model'!AE25:AM25)) ->  | AE27: =IF(year=1,'5 Year Model'!AF25:AN25,IF(year=2,'10 Year Model'!AF25:AN25,'30 Year Model'!AF25:AN25)) ->  | AF27: =IF(year=1,'5 Year Model'!AG25:AO25,IF(year=2,'10 Year Model'!AG25:AO25,'30 Year Model'!AG25:AO25)) ->  | AG27: =IF(year=1,'5 Year Model'!AH25:AP25,IF(year=2,'10 Year Model'!AH25:AP25,'30 Year Model'!AH25:AP25)) ->  | AH27: =IF(year=1,'5 Year Model'!AI25:AQ25,IF(year=2,'10 Year Model'!AI25:AQ25,'30 Year Model'!AI25:AQ25)) -> 
Z28: =IF(year=1,'5 Year Model'!AA26:AI26,IF(year=2,'10 Year Model'!AA26:AI26,'30 Year Model'!AA26:AI26)) ->  | AA28: =IF(year=1,'5 Year Model'!AB26:AJ26,IF(year=2,'10 Year Model'!AB26:AJ26,'30 Year Model'!AB26:AJ26)) ->  | AB28: =IF(year=1,'5 Year Model'!AC26:AK26,IF(year=2,'10 Year Model'!AC26:AK26,'30 Year Model'!AC26:AK26)) ->  | AC28: =IF(year=1,'5 Year Model'!AD26:AL26,IF(year=2,'10 Year Model'!AD26:AL26,'30 Year Model'!AD26:AL26)) ->  | AD28: =IF(year=1,'5 Year Model'!AE26:AM26,IF(year=2,'10 Year Model'!AE26:AM26,'30 Year Model'!AE26:AM26)) ->  | AE28: =IF(year=1,'5 Year Model'!AF26:AN26,IF(year=2,'10 Year Model'!AF26:AN26,'30 Year Model'!AF26:AN26)) ->  | AF28: =IF(year=1,'5 Year Model'!AG26:AO26,IF(year=2,'10 Year Model'!AG26:AO26,'30 Year Model'!AG26:AO26)) ->  | AG28: =IF(year=1,'5 Year Model'!AH26:AP26,IF(year=2,'10 Year Model'!AH26:AP26,'30 Year Model'!AH26:AP26)) ->  | AH28: =IF(year=1,'5 Year Model'!AI26:AQ26,IF(year=2,'10 Year Model'!AI26:AQ26,'30 Year Model'!AI26:AQ26)) -> 
Z29: =IF(year=1,'5 Year Model'!AA27:AI27,IF(year=2,'10 Year Model'!AA27:AI27,'30 Year Model'!AA27:AI27)) ->  | AA29: =IF(year=1,'5 Year Model'!AB27:AJ27,IF(year=2,'10 Year Model'!AB27:AJ27,'30 Year Model'!AB27:AJ27)) ->  | AB29: =IF(year=1,'5 Year Model'!AC27:AK27,IF(year=2,'10 Year Model'!AC27:AK27,'30 Year Model'!AC27:AK27)) ->  | AC29: =IF(year=1,'5 Year Model'!AD27:AL27,IF(year=2,'10 Year Model'!AD27:AL27,'30 Year Model'!AD27:AL27)) ->  | AD29: =IF(year=1,'5 Year Model'!AE27:AM27,IF(year=2,'10 Year Model'!AE27:AM27,'30 Year Model'!AE27:AM27)) ->  | AE29: =IF(year=1,'5 Year Model'!AF27:AN27,IF(year=2,'10 Year Model'!AF27:AN27,'30 Year Model'!AF27:AN27)) ->  | AF29: =IF(year=1,'5 Year Model'!AG27:AO27,IF(year=2,'10 Year Model'!AG27:AO27,'30 Year Model'!AG27:AO27)) ->  | AG29: =IF(year=1,'5 Year Model'!AH27:AP27,IF(year=2,'10 Year Model'!AH27:AP27,'30 Year Model'!AH27:AP27)) ->  | AH29: =IF(year=1,'5 Year Model'!AI27:AQ27,IF(year=2,'10 Year Model'!AI27:AQ27,'30 Year Model'!AI27:AQ27)) -> 
Z30: =IF(year=1,'5 Year Model'!AA28:AI28,IF(year=2,'10 Year Model'!AA28:AI28,'30 Year Model'!AA28:AI28)) ->  | AA30: =IF(year=1,'5 Year Model'!AB28:AJ28,IF(year=2,'10 Year Model'!AB28:AJ28,'30 Year Model'!AB28:AJ28)) ->  | AB30: =IF(year=1,'5 Year Model'!AC28:AK28,IF(year=2,'10 Year Model'!AC28:AK28,'30 Year Model'!AC28:AK28)) ->  | AC30: =IF(year=1,'5 Year Model'!AD28:AL28,IF(year=2,'10 Year Model'!AD28:AL28,'30 Year Model'!AD28:AL28)) ->  | AD30: =IF(year=1,'5 Year Model'!AE28:AM28,IF(year=2,'10 Year Model'!AE28:AM28,'30 Year Model'!AE28:AM28)) ->  | AE30: =IF(year=1,'5 Year Model'!AF28:AN28,IF(year=2,'10 Year Model'!AF28:AN28,'30 Year Model'!AF28:AN28)) ->  | AF30: =IF(year=1,'5 Year Model'!AG28:AO28,IF(year=2,'10 Year Model'!AG28:AO28,'30 Year Model'!AG28:AO28)) ->  | AG30: =IF(year=1,'5 Year Model'!AH28:AP28,IF(year=2,'10 Year Model'!AH28:AP28,'30 Year Model'!AH28:AP28)) ->  | AH30: =IF(year=1,'5 Year Model'!AI28:AQ28,IF(year=2,'10 Year Model'!AI28:AQ28,'30 Year Model'!AI28:AQ28)) -> 
Z31: =IF(year=1,'5 Year Model'!AA29:AI29,IF(year=2,'10 Year Model'!AA29:AI29,'30 Year Model'!AA29:AI29)) ->  | AA31: =IF(year=1,'5 Year Model'!AB29:AJ29,IF(year=2,'10 Year Model'!AB29:AJ29,'30 Year Model'!AB29:AJ29)) ->  | AB31: =IF(year=1,'5 Year Model'!AC29:AK29,IF(year=2,'10 Year Model'!AC29:AK29,'30 Year Model'!AC29:AK29)) ->  | AC31: =IF(year=1,'5 Year Model'!AD29:AL29,IF(year=2,'10 Year Model'!AD29:AL29,'30 Year Model'!AD29:AL29)) ->  | AD31: =IF(year=1,'5 Year Model'!AE29:AM29,IF(year=2,'10 Year Model'!AE29:AM29,'30 Year Model'!AE29:AM29)) ->  | AE31: =IF(year=1,'5 Year Model'!AF29:AN29,IF(year=2,'10 Year Model'!AF29:AN29,'30 Year Model'!AF29:AN29)) ->  | AF31: =IF(year=1,'5 Year Model'!AG29:AO29,IF(year=2,'10 Year Model'!AG29:AO29,'30 Year Model'!AG29:AO29)) ->  | AG31: =IF(year=1,'5 Year Model'!AH29:AP29,IF(year=2,'10 Year Model'!AH29:AP29,'30 Year Model'!AH29:AP29)) ->  | AH31: =IF(year=1,'5 Year Model'!AI29:AQ29,IF(year=2,'10 Year Model'!AI29:AQ29,'30 Year Model'!AI29:AQ29)) -> 
Z32: =IF(year=1,'5 Year Model'!AA30:AI30,IF(year=2,'10 Year Model'!AA30:AI30,'30 Year Model'!AA30:AI30)) ->  | AA32: =IF(year=1,'5 Year Model'!AB30:AJ30,IF(year=2,'10 Year Model'!AB30:AJ30,'30 Year Model'!AB30:AJ30)) ->  | AB32: =IF(year=1,'5 Year Model'!AC30:AK30,IF(year=2,'10 Year Model'!AC30:AK30,'30 Year Model'!AC30:AK30)) ->  | AC32: =IF(year=1,'5 Year Model'!AD30:AL30,IF(year=2,'10 Year Model'!AD30:AL30,'30 Year Model'!AD30:AL30)) ->  | AD32: =IF(year=1,'5 Year Model'!AE30:AM30,IF(year=2,'10 Year Model'!AE30:AM30,'30 Year Model'!AE30:AM30)) ->  | AE32: =IF(year=1,'5 Year Model'!AF30:AN30,IF(year=2,'10 Year Model'!AF30:AN30,'30 Year Model'!AF30:AN30)) ->  | AF32: =IF(year=1,'5 Year Model'!AG30:AO30,IF(year=2,'10 Year Model'!AG30:AO30,'30 Year Model'!AG30:AO30)) ->  | AG32: =IF(year=1,'5 Year Model'!AH30:AP30,IF(year=2,'10 Year Model'!AH30:AP30,'30 Year Model'!AH30:AP30)) ->  | AH32: =IF(year=1,'5 Year Model'!AI30:AQ30,IF(year=2,'10 Year Model'!AI30:AQ30,'30 Year Model'!AI30:AQ30)) -> 
Z33: =IF(year=1,'5 Year Model'!AA31:AI31,IF(year=2,'10 Year Model'!AA31:AI31,'30 Year Model'!AA31:AI31)) ->  | AA33: =IF(year=1,'5 Year Model'!AB31:AJ31,IF(year=2,'10 Year Model'!AB31:AJ31,'30 Year Model'!AB31:AJ31)) ->  | AB33: =IF(year=1,'5 Year Model'!AC31:AK31,IF(year=2,'10 Year Model'!AC31:AK31,'30 Year Model'!AC31:AK31)) ->  | AC33: =IF(year=1,'5 Year Model'!AD31:AL31,IF(year=2,'10 Year Model'!AD31:AL31,'30 Year Model'!AD31:AL31)) ->  | AD33: =IF(year=1,'5 Year Model'!AE31:AM31,IF(year=2,'10 Year Model'!AE31:AM31,'30 Year Model'!AE31:AM31)) ->  | AE33: =IF(year=1,'5 Year Model'!AF31:AN31,IF(year=2,'10 Year Model'!AF31:AN31,'30 Year Model'!AF31:AN31)) ->  | AF33: =IF(year=1,'5 Year Model'!AG31:AO31,IF(year=2,'10 Year Model'!AG31:AO31,'30 Year Model'!AG31:AO31)) ->  | AG33: =IF(year=1,'5 Year Model'!AH31:AP31,IF(year=2,'10 Year Model'!AH31:AP31,'30 Year Model'!AH31:AP31)) ->  | AH33: =IF(year=1,'5 Year Model'!AI31:AQ31,IF(year=2,'10 Year Model'!AI31:AQ31,'30 Year Model'!AI31:AQ31)) -> 
Z34: =IF(year=1,'5 Year Model'!AA32:AI32,IF(year=2,'10 Year Model'!AA32:AI32,'30 Year Model'!AA32:AI32)) ->  | AA34: =IF(year=1,'5 Year Model'!AB32:AJ32,IF(year=2,'10 Year Model'!AB32:AJ32,'30 Year Model'!AB32:AJ32)) ->  | AB34: =IF(year=1,'5 Year Model'!AC32:AK32,IF(year=2,'10 Year Model'!AC32:AK32,'30 Year Model'!AC32:AK32)) ->  | AC34: =IF(year=1,'5 Year Model'!AD32:AL32,IF(year=2,'10 Year Model'!AD32:AL32,'30 Year Model'!AD32:AL32)) ->  | AD34: =IF(year=1,'5 Year Model'!AE32:AM32,IF(year=2,'10 Year Model'!AE32:AM32,'30 Year Model'!AE32:AM32)) ->  | AE34: =IF(year=1,'5 Year Model'!AF32:AN32,IF(year=2,'10 Year Model'!AF32:AN32,'30 Year Model'!AF32:AN32)) ->  | AF34: =IF(year=1,'5 Year Model'!AG32:AO32,IF(year=2,'10 Year Model'!AG32:AO32,'30 Year Model'!AG32:AO32)) ->  | AG34: =IF(year=1,'5 Year Model'!AH32:AP32,IF(year=2,'10 Year Model'!AH32:AP32,'30 Year Model'!AH32:AP32)) ->  | AH34: =IF(year=1,'5 Year Model'!AI32:AQ32,IF(year=2,'10 Year Model'!AI32:AQ32,'30 Year Model'!AI32:AQ32)) -> 
Z35: =IF(year=1,'5 Year Model'!AA33:AI33,IF(year=2,'10 Year Model'!AA33:AI33,'30 Year Model'!AA33:AI33)) ->  | AA35: =IF(year=1,'5 Year Model'!AB33:AJ33,IF(year=2,'10 Year Model'!AB33:AJ33,'30 Year Model'!AB33:AJ33)) ->  | AB35: =IF(year=1,'5 Year Model'!AC33:AK33,IF(year=2,'10 Year Model'!AC33:AK33,'30 Year Model'!AC33:AK33)) ->  | AC35: =IF(year=1,'5 Year Model'!AD33:AL33,IF(year=2,'10 Year Model'!AD33:AL33,'30 Year Model'!AD33:AL33)) ->  | AD35: =IF(year=1,'5 Year Model'!AE33:AM33,IF(year=2,'10 Year Model'!AE33:AM33,'30 Year Model'!AE33:AM33)) ->  | AE35: =IF(year=1,'5 Year Model'!AF33:AN33,IF(year=2,'10 Year Model'!AF33:AN33,'30 Year Model'!AF33:AN33)) ->  | AF35: =IF(year=1,'5 Year Model'!AG33:AO33,IF(year=2,'10 Year Model'!AG33:AO33,'30 Year Model'!AG33:AO33)) ->  | AG35: =IF(year=1,'5 Year Model'!AH33:AP33,IF(year=2,'10 Year Model'!AH33:AP33,'30 Year Model'!AH33:AP33)) ->  | AH35: =IF(year=1,'5 Year Model'!AI33:AQ33,IF(year=2,'10 Year Model'!AI33:AQ33,'30 Year Model'!AI33:AQ33)) -> 
Z36: =IF(year=1,'5 Year Model'!AA34:AI34,IF(year=2,'10 Year Model'!AA34:AI34,'30 Year Model'!AA34:AI34)) ->  | AA36: =IF(year=1,'5 Year Model'!AB34:AJ34,IF(year=2,'10 Year Model'!AB34:AJ34,'30 Year Model'!AB34:AJ34)) ->  | AB36: =IF(year=1,'5 Year Model'!AC34:AK34,IF(year=2,'10 Year Model'!AC34:AK34,'30 Year Model'!AC34:AK34)) ->  | AC36: =IF(year=1,'5 Year Model'!AD34:AL34,IF(year=2,'10 Year Model'!AD34:AL34,'30 Year Model'!AD34:AL34)) ->  | AD36: =IF(year=1,'5 Year Model'!AE34:AM34,IF(year=2,'10 Year Model'!AE34:AM34,'30 Year Model'!AE34:AM34)) ->  | AE36: =IF(year=1,'5 Year Model'!AF34:AN34,IF(year=2,'10 Year Model'!AF34:AN34,'30 Year Model'!AF34:AN34)) ->  | AF36: =IF(year=1,'5 Year Model'!AG34:AO34,IF(year=2,'10 Year Model'!AG34:AO34,'30 Year Model'!AG34:AO34)) ->  | AG36: =IF(year=1,'5 Year Model'!AH34:AP34,IF(year=2,'10 Year Model'!AH34:AP34,'30 Year Model'!AH34:AP34)) ->  | AH36: =IF(year=1,'5 Year Model'!AI34:AQ34,IF(year=2,'10 Year Model'!AI34:AQ34,'30 Year Model'!AI34:AQ34)) -> 
Z37: =IF(year=1,'5 Year Model'!AA35:AI35,IF(year=2,'10 Year Model'!AA35:AI35,'30 Year Model'!AA35:AI35)) ->  | AA37: =IF(year=1,'5 Year Model'!AB35:AJ35,IF(year=2,'10 Year Model'!AB35:AJ35,'30 Year Model'!AB35:AJ35)) ->  | AB37: =IF(year=1,'5 Year Model'!AC35:AK35,IF(year=2,'10 Year Model'!AC35:AK35,'30 Year Model'!AC35:AK35)) ->  | AC37: =IF(year=1,'5 Year Model'!AD35:AL35,IF(year=2,'10 Year Model'!AD35:AL35,'30 Year Model'!AD35:AL35)) ->  | AD37: =IF(year=1,'5 Year Model'!AE35:AM35,IF(year=2,'10 Year Model'!AE35:AM35,'30 Year Model'!AE35:AM35)) ->  | AE37: =IF(year=1,'5 Year Model'!AF35:AN35,IF(year=2,'10 Year Model'!AF35:AN35,'30 Year Model'!AF35:AN35)) ->  | AF37: =IF(year=1,'5 Year Model'!AG35:AO35,IF(year=2,'10 Year Model'!AG35:AO35,'30 Year Model'!AG35:AO35)) ->  | AG37: =IF(year=1,'5 Year Model'!AH35:AP35,IF(year=2,'10 Year Model'!AH35:AP35,'30 Year Model'!AH35:AP35)) ->  | AH37: =IF(year=1,'5 Year Model'!AI35:AQ35,IF(year=2,'10 Year Model'!AI35:AQ35,'30 Year Model'!AI35:AQ35)) -> 
Z38: =IF(year=1,'5 Year Model'!AA36:AI36,IF(year=2,'10 Year Model'!AA36:AI36,'30 Year Model'!AA36:AI36)) ->  | AA38: =IF(year=1,'5 Year Model'!AB36:AJ36,IF(year=2,'10 Year Model'!AB36:AJ36,'30 Year Model'!AB36:AJ36)) ->  | AB38: =IF(year=1,'5 Year Model'!AC36:AK36,IF(year=2,'10 Year Model'!AC36:AK36,'30 Year Model'!AC36:AK36)) ->  | AC38: =IF(year=1,'5 Year Model'!AD36:AL36,IF(year=2,'10 Year Model'!AD36:AL36,'30 Year Model'!AD36:AL36)) ->  | AD38: =IF(year=1,'5 Year Model'!AE36:AM36,IF(year=2,'10 Year Model'!AE36:AM36,'30 Year Model'!AE36:AM36)) ->  | AE38: =IF(year=1,'5 Year Model'!AF36:AN36,IF(year=2,'10 Year Model'!AF36:AN36,'30 Year Model'!AF36:AN36)) ->  | AF38: =IF(year=1,'5 Year Model'!AG36:AO36,IF(year=2,'10 Year Model'!AG36:AO36,'30 Year Model'!AG36:AO36)) ->  | AG38: =IF(year=1,'5 Year Model'!AH36:AP36,IF(year=2,'10 Year Model'!AH36:AP36,'30 Year Model'!AH36:AP36)) ->  | AH38: =IF(year=1,'5 Year Model'!AI36:AQ36,IF(year=2,'10 Year Model'!AI36:AQ36,'30 Year Model'!AI36:AQ36)) -> 
Z39: =IF(year=1,'5 Year Model'!AA37:AI37,IF(year=2,'10 Year Model'!AA37:AI37,'30 Year Model'!AA37:AI37)) ->  | AA39: =IF(year=1,'5 Year Model'!AB37:AJ37,IF(year=2,'10 Year Model'!AB37:AJ37,'30 Year Model'!AB37:AJ37)) ->  | AB39: =IF(year=1,'5 Year Model'!AC37:AK37,IF(year=2,'10 Year Model'!AC37:AK37,'30 Year Model'!AC37:AK37)) ->  | AC39: =IF(year=1,'5 Year Model'!AD37:AL37,IF(year=2,'10 Year Model'!AD37:AL37,'30 Year Model'!AD37:AL37)) ->  | AD39: =IF(year=1,'5 Year Model'!AE37:AM37,IF(year=2,'10 Year Model'!AE37:AM37,'30 Year Model'!AE37:AM37)) ->  | AE39: =IF(year=1,'5 Year Model'!AF37:AN37,IF(year=2,'10 Year Model'!AF37:AN37,'30 Year Model'!AF37:AN37)) ->  | AF39: =IF(year=1,'5 Year Model'!AG37:AO37,IF(year=2,'10 Year Model'!AG37:AO37,'30 Year Model'!AG37:AO37)) ->  | AG39: =IF(year=1,'5 Year Model'!AH37:AP37,IF(year=2,'10 Year Model'!AH37:AP37,'30 Year Model'!AH37:AP37)) ->  | AH39: =IF(year=1,'5 Year Model'!AI37:AQ37,IF(year=2,'10 Year Model'!AI37:AQ37,'30 Year Model'!AI37:AQ37)) -> 
Z40: =IF(year=1,'5 Year Model'!AA38:AI38,IF(year=2,'10 Year Model'!AA38:AI38,'30 Year Model'!AA38:AI38)) ->  | AA40: =IF(year=1,'5 Year Model'!AB38:AJ38,IF(year=2,'10 Year Model'!AB38:AJ38,'30 Year Model'!AB38:AJ38)) ->  | AB40: =IF(year=1,'5 Year Model'!AC38:AK38,IF(year=2,'10 Year Model'!AC38:AK38,'30 Year Model'!AC38:AK38)) ->  | AC40: =IF(year=1,'5 Year Model'!AD38:AL38,IF(year=2,'10 Year Model'!AD38:AL38,'30 Year Model'!AD38:AL38)) ->  | AD40: =IF(year=1,'5 Year Model'!AE38:AM38,IF(year=2,'10 Year Model'!AE38:AM38,'30 Year Model'!AE38:AM38)) ->  | AE40: =IF(year=1,'5 Year Model'!AF38:AN38,IF(year=2,'10 Year Model'!AF38:AN38,'30 Year Model'!AF38:AN38)) ->  | AF40: =IF(year=1,'5 Year Model'!AG38:AO38,IF(year=2,'10 Year Model'!AG38:AO38,'30 Year Model'!AG38:AO38)) ->  | AG40: =IF(year=1,'5 Year Model'!AH38:AP38,IF(year=2,'10 Year Model'!AH38:AP38,'30 Year Model'!AH38:AP38)) ->  | AH40: =IF(year=1,'5 Year Model'!AI38:AQ38,IF(year=2,'10 Year Model'!AI38:AQ38,'30 Year Model'!AI38:AQ38)) -> 
Z41: =IF(year=1,'5 Year Model'!AA39:AI39,IF(year=2,'10 Year Model'!AA39:AI39,'30 Year Model'!AA39:AI39)) ->  | AA41: =IF(year=1,'5 Year Model'!AB39:AJ39,IF(year=2,'10 Year Model'!AB39:AJ39,'30 Year Model'!AB39:AJ39)) ->  | AB41: =IF(year=1,'5 Year Model'!AC39:AK39,IF(year=2,'10 Year Model'!AC39:AK39,'30 Year Model'!AC39:AK39)) ->  | AC41: =IF(year=1,'5 Year Model'!AD39:AL39,IF(year=2,'10 Year Model'!AD39:AL39,'30 Year Model'!AD39:AL39)) ->  | AD41: =IF(year=1,'5 Year Model'!AE39:AM39,IF(year=2,'10 Year Model'!AE39:AM39,'30 Year Model'!AE39:AM39)) ->  | AE41: =IF(year=1,'5 Year Model'!AF39:AN39,IF(year=2,'10 Year Model'!AF39:AN39,'30 Year Model'!AF39:AN39)) ->  | AF41: =IF(year=1,'5 Year Model'!AG39:AO39,IF(year=2,'10 Year Model'!AG39:AO39,'30 Year Model'!AG39:AO39)) ->  | AG41: =IF(year=1,'5 Year Model'!AH39:AP39,IF(year=2,'10 Year Model'!AH39:AP39,'30 Year Model'!AH39:AP39)) ->  | AH41: =IF(year=1,'5 Year Model'!AI39:AQ39,IF(year=2,'10 Year Model'!AI39:AQ39,'30 Year Model'!AI39:AQ39)) -> 
Z42: =IF(year=1,'5 Year Model'!AA40:AI40,IF(year=2,'10 Year Model'!AA40:AI40,'30 Year Model'!AA40:AI40)) ->  | AA42: =IF(year=1,'5 Year Model'!AB40:AJ40,IF(year=2,'10 Year Model'!AB40:AJ40,'30 Year Model'!AB40:AJ40)) ->  | AB42: =IF(year=1,'5 Year Model'!AC40:AK40,IF(year=2,'10 Year Model'!AC40:AK40,'30 Year Model'!AC40:AK40)) ->  | AC42: =IF(year=1,'5 Year Model'!AD40:AL40,IF(year=2,'10 Year Model'!AD40:AL40,'30 Year Model'!AD40:AL40)) ->  | AD42: =IF(year=1,'5 Year Model'!AE40:AM40,IF(year=2,'10 Year Model'!AE40:AM40,'30 Year Model'!AE40:AM40)) ->  | AE42: =IF(year=1,'5 Year Model'!AF40:AN40,IF(year=2,'10 Year Model'!AF40:AN40,'30 Year Model'!AF40:AN40)) ->  | AF42: =IF(year=1,'5 Year Model'!AG40:AO40,IF(year=2,'10 Year Model'!AG40:AO40,'30 Year Model'!AG40:AO40)) ->  | AG42: =IF(year=1,'5 Year Model'!AH40:AP40,IF(year=2,'10 Year Model'!AH40:AP40,'30 Year Model'!AH40:AP40)) ->  | AH42: =IF(year=1,'5 Year Model'!AI40:AQ40,IF(year=2,'10 Year Model'!AI40:AQ40,'30 Year Model'!AI40:AQ40)) -> 
Z43: =IF(year=1,'5 Year Model'!AA41:AI41,IF(year=2,'10 Year Model'!AA41:AI41,'30 Year Model'!AA41:AI41)) ->  | AA43: =IF(year=1,'5 Year Model'!AB41:AJ41,IF(year=2,'10 Year Model'!AB41:AJ41,'30 Year Model'!AB41:AJ41)) ->  | AB43: =IF(year=1,'5 Year Model'!AC41:AK41,IF(year=2,'10 Year Model'!AC41:AK41,'30 Year Model'!AC41:AK41)) ->  | AC43: =IF(year=1,'5 Year Model'!AD41:AL41,IF(year=2,'10 Year Model'!AD41:AL41,'30 Year Model'!AD41:AL41)) ->  | AD43: =IF(year=1,'5 Year Model'!AE41:AM41,IF(year=2,'10 Year Model'!AE41:AM41,'30 Year Model'!AE41:AM41)) ->  | AE43: =IF(year=1,'5 Year Model'!AF41:AN41,IF(year=2,'10 Year Model'!AF41:AN41,'30 Year Model'!AF41:AN41)) ->  | AF43: =IF(year=1,'5 Year Model'!AG41:AO41,IF(year=2,'10 Year Model'!AG41:AO41,'30 Year Model'!AG41:AO41)) ->  | AG43: =IF(year=1,'5 Year Model'!AH41:AP41,IF(year=2,'10 Year Model'!AH41:AP41,'30 Year Model'!AH41:AP41)) ->  | AH43: =IF(year=1,'5 Year Model'!AI41:AQ41,IF(year=2,'10 Year Model'!AI41:AQ41,'30 Year Model'!AI41:AQ41)) -> 
Z44: =IF(year=1,'5 Year Model'!AA42:AI42,IF(year=2,'10 Year Model'!AA42:AI42,'30 Year Model'!AA42:AI42)) ->  | AA44: =IF(year=1,'5 Year Model'!AB42:AJ42,IF(year=2,'10 Year Model'!AB42:AJ42,'30 Year Model'!AB42:AJ42)) ->  | AB44: =IF(year=1,'5 Year Model'!AC42:AK42,IF(year=2,'10 Year Model'!AC42:AK42,'30 Year Model'!AC42:AK42)) ->  | AC44: =IF(year=1,'5 Year Model'!AD42:AL42,IF(year=2,'10 Year Model'!AD42:AL42,'30 Year Model'!AD42:AL42)) ->  | AD44: =IF(year=1,'5 Year Model'!AE42:AM42,IF(year=2,'10 Year Model'!AE42:AM42,'30 Year Model'!AE42:AM42)) ->  | AE44: =IF(year=1,'5 Year Model'!AF42:AN42,IF(year=2,'10 Year Model'!AF42:AN42,'30 Year Model'!AF42:AN42)) ->  | AF44: =IF(year=1,'5 Year Model'!AG42:AO42,IF(year=2,'10 Year Model'!AG42:AO42,'30 Year Model'!AG42:AO42)) ->  | AG44: =IF(year=1,'5 Year Model'!AH42:AP42,IF(year=2,'10 Year Model'!AH42:AP42,'30 Year Model'!AH42:AP42)) ->  | AH44: =IF(year=1,'5 Year Model'!AI42:AQ42,IF(year=2,'10 Year Model'!AI42:AQ42,'30 Year Model'!AI42:AQ42)) -> 
Z45: =IF(year=1,'5 Year Model'!AA43:AI43,IF(year=2,'10 Year Model'!AA43:AI43,'30 Year Model'!AA43:AI43)) ->  | AA45: =IF(year=1,'5 Year Model'!AB43:AJ43,IF(year=2,'10 Year Model'!AB43:AJ43,'30 Year Model'!AB43:AJ43)) ->  | AB45: =IF(year=1,'5 Year Model'!AC43:AK43,IF(year=2,'10 Year Model'!AC43:AK43,'30 Year Model'!AC43:AK43)) ->  | AC45: =IF(year=1,'5 Year Model'!AD43:AL43,IF(year=2,'10 Year Model'!AD43:AL43,'30 Year Model'!AD43:AL43)) ->  | AD45: =IF(year=1,'5 Year Model'!AE43:AM43,IF(year=2,'10 Year Model'!AE43:AM43,'30 Year Model'!AE43:AM43)) ->  | AE45: =IF(year=1,'5 Year Model'!AF43:AN43,IF(year=2,'10 Year Model'!AF43:AN43,'30 Year Model'!AF43:AN43)) ->  | AF45: =IF(year=1,'5 Year Model'!AG43:AO43,IF(year=2,'10 Year Model'!AG43:AO43,'30 Year Model'!AG43:AO43)) ->  | AG45: =IF(year=1,'5 Year Model'!AH43:AP43,IF(year=2,'10 Year Model'!AH43:AP43,'30 Year Model'!AH43:AP43)) ->  | AH45: =IF(year=1,'5 Year Model'!AI43:AQ43,IF(year=2,'10 Year Model'!AI43:AQ43,'30 Year Model'!AI43:AQ43)) -> 
AA46: =IF(year=1,'5 Year Model'!AB44:AJ44,IF(year=2,'10 Year Model'!AB44:AJ44,'30 Year Model'!AB44:AJ44)) ->  | AB46: =IF(year=1,'5 Year Model'!AC44:AK44,IF(year=2,'10 Year Model'!AC44:AK44,'30 Year Model'!AC44:AK44)) ->  | AC46: =IF(year=1,'5 Year Model'!AD44:AL44,IF(year=2,'10 Year Model'!AD44:AL44,'30 Year Model'!AD44:AL44)) ->  | AD46: =IF(year=1,'5 Year Model'!AE44:AM44,IF(year=2,'10 Year Model'!AE44:AM44,'30 Year Model'!AE44:AM44)) -> 

Sheet 5 Year Model
AA1: Cash Flow for Equivalent Investments 5 Year Model
AB2: Analysis Price/Acre | AC2: =price5 -> 8000 | AG2: Certificate of Deposit | AI2: =AC4 -> 8000
C3: ='Sensitivity Tables'!$B$34 -> 1 | E3: 5 year horizon | AB3: Acres | AC3: 20 | AG3: Interest Rate | AI3: =O14/(1-IncomeTax) -> 0.03542068037
Q4: Analysis Price | AB4: Total Purchase | AC4: =price5 -> 8000 | AG4: After Tax Cash Flows Reinvested Annually
E5: Property Taxes | I5: Downpayment & | N5: Analysis Price: | O5: =analysis -> 8000 | Q5: =analysis -> 8000 | AB5: Net Cash Flows | AD5: Income | AE5: After Tax | AH5: Income | AI5: End-of-Year
D6: Net | E6: and Amortized | F6: Debt | G6: Debt | H6: Interest | I6: Principal | K6: After Tax | L6: Capital | N6: Ending | O6: Net After | Q6: Net Present | AA6: Year | AB6: Including RE Taxes | AC6: Debt Payments | AD6: Taxes | AE6: Cash Flows | AG6: Interest Income | AH6: Taxes | AI6: Value
C7: Year | D7: Cash Flows | E7: Closing Costs | F7: Payments | G7: Outstanding | H7: Payments | I7: Payments | J7: Depreciation | K7: Cash Flows | L7: Gains Tax | M7: Land Value | N7: Debt Value | O7: Tax Cash Flows | Q7: Value Calc. | T7: =solve5 -> -164.59 | AI7: After Taxes
B8: Initial Investment | C8: 0 | I8: =O5*(1-financed) -> 2000 | O8: =-(price5*closing)-I8 -> -2080 | Q8: -2080 | S8: =Q5 -> 8000 | T8: -164.59 | AA8: =C8 -> 0 | AB8: =price5*closing -> 80 | AC8: =#REF! ->  | AE8: =price5*closing -> 80 | AI8: =AI2 -> 8000
B9: =CF -> 350 | C9: 1 | D9: =factor*CFlow5*(1+growcf5)^('5 Year Model'!C9-1)*acres -> 350 | E9: =acres*PropertyTaxAc*(1+growcf5)^('5 Year Model'!C9-1)+(closing*price5/5) -> 46 | F9: =IF(interest*amort>0,PMT(interest,amort,-'5 Year Model'!O5*financed),0) -> 523.1073419 | G9: =O5*financed -> 6000 | H9: =G9*interest -> 360 | I9: =F9-H9 -> 163.1073419 | J9: =+Elect179+'Main-Land Bid Price'!AI2 -> 0 | K9: =(D9-E9-H9)*(1-IncomeTax)-I9+(closing*price5/5)+J9*IncomeTax -> -187.4273419 | M9: =O5*(1+growland5) -> 8160 | O9: =K9 -> -187.4273419 | Q9: -187.4273419 | AA9: 1 | AB9: =D9-E9+(closing*price5/5) -> 320 | AC9: =F9 -> 523.1073419 | AD9: =AB9-AE9-AC9 -> -15.68 | AE9: =K9 -> -187.4273419 | AG9: =(1+$AI$3)^AA8*$AI$2*$AI$3 -> 283.365443 | AH9: =AG9*IncomeTax -> 79.34232404 | AI9: =AI8+AG9-AH9 -> 8204.023119
B10: =GROWcf -> 0.02 | C10: 2 | D10: =factor*CFlow5*(1+growcf5)^('5 Year Model'!C10-1)*acres -> 357 | E10: =acres*PropertyTaxAc*(1+growcf5)^('5 Year Model'!C10-1)+(closing*price5/5) -> 46.6 | F10: =IF(C10<=amort,F9,0) -> 523.1073419 | G10: =IF(C10<=amort,G9-I9,0) -> 5836.892658 | H10: =G10*interest -> 350.2135595 | I10: =F10-H10 -> 172.8937824 | J10: =+'Main-Land Bid Price'!AI3 -> 0 | K10: =(D10-E10-H10)*(1-IncomeTax)-I10+(closing*price5/5)+J10*IncomeTax -> -185.5595452 | M10: =M9*(1+growland5) -> 8323.2 | O10: =K10 -> -185.5595452 | Q10: -185.5595452 | AA10: 2 | AB10: =D10-E10+(closing*price5/5) -> 326.4 | AC10: =F10 -> 523.1073419 | AD10: =AB10-AE10-AC10 -> -11.14779666 | AE10: =K10 -> -185.5595452 | AG10: =AI9*$AI$3 -> 290.5920807 | AH10: =AG10*IncomeTax -> 81.36578259 | AI10: =AI9+AG10-AH10 -> 8413.249417
B11: =GROWland -> 0.02 | C11: 3 | D11: =factor*CFlow5*(1+growcf5)^('5 Year Model'!C11-1)*acres -> 364.14 | E11: =acres*PropertyTaxAc*(1+growcf5)^('5 Year Model'!C11-1)+(closing*price5/5) -> 47.212 | F11: =IF(C11<=amort,F10,0) -> 523.1073419 | G11: =IF(C11<=amort,G10-I10,0) -> 5663.998876 | H11: =G11*interest -> 339.8399325 | I11: =F11-H11 -> 183.2674093 | J11: =+'Main-Land Bid Price'!AI4 -> 0 | K11: =(D11-E11-H11)*(1-IncomeTax)-I11+(closing*price5/5)+J11*IncomeTax -> -183.7640007 | M11: =M10*(1+growland5) -> 8489.664 | O11: =K11 -> -183.7640007 | Q11: -183.7640007 | AA11: 3 | AB11: =D11-E11+(closing*price5/5) -> 332.928 | AC11: =F11 -> 523.1073419 | AD11: =AB11-AE11-AC11 -> -6.415341113 | AE11: =K11 -> -183.7640007 | AG11: =AI10*$AI$3 -> 298.0030185 | AH11: =AG11*IncomeTax -> 83.44084518 | AI11: =AI10+AG11-AH11 -> 8627.81159
B12: 0.02895108175 | C12: 4 | D12: =factor*CFlow5*(1+growcf5)^('5 Year Model'!C12-1)*acres -> 371.4228 | E12: =acres*PropertyTaxAc*(1+growcf5)^('5 Year Model'!C12-1)+(closing*price5/5) -> 47.83624 | F12: =IF(C12<=amort,F11,0) -> 523.1073419 | G12: =IF(C12<=amort,G11-I11,0) -> 5480.731466 | H12: =G12*interest -> 328.843888 | I12: =F12-H12 -> 194.2634539 | J12: =+'Main-Land Bid Price'!AI5 -> 0 | K12: =(D12-E12-H12)*(1-IncomeTax)-I12+(closing*price5/5)+J12*IncomeTax -> -182.04873 | M12: =M11*(1+growland5) -> 8659.45728 | O12: =K12 -> -182.04873 | Q12: -182.04873 | AA12: 4 | AB12: =D12-E12+(closing*price5/5) -> 339.58656 | AC12: =F12 -> 523.1073419 | AD12: =AB12-AE12-AC12 -> -1.472051836 | AE12: =K12 -> -182.04873 | AG12: =AI11*$AI$3 -> 305.6029567 | AH12: =AG12*IncomeTax -> 85.56882787 | AI12: =AI11+AG12-AH12 -> 8847.845719
B13: Terminal Value | C13: 5 | D13: =factor*CFlow5*(1+growcf5)^('5 Year Model'!C13-1)*acres -> 378.851256 | E13: =acres*PropertyTaxAc*(1+growcf5)^('5 Year Model'!C13-1)+(closing*price5/5) -> 48.4729648 | F13: =IF(C13<=amort,F12,0) -> 523.1073419 | G13: =IF(C13<=amort,G12-I12,0) -> 5286.468013 | H13: =G13*interest -> 317.1880808 | I13: =F13-H13 -> 205.9192611 | J13: =+'Main-Land Bid Price'!AI6 -> 0 | K13: =(D13-E13-H13)*(1-IncomeTax)-I13-(M13*closingEH)+(closing*price5/5)+J13*IncomeTax -> -533.7281666 | L13: =(M13+J14-O5-M13*closingEH)*CapitalGainsTax -> 71.90108529 | M13: =M12*(1+growland5) -> 8832.646426 | N13: =G13-I13 -> 5080.548751 | O13: =K13+M13-L13-N13 -> 3146.468422 | Q13: 3146.468422 | AA13: 5 | AB13: =D13-E13+(closing*price5/5)-M13*closingEH -> -6.927565824 | AC13: =F13 -> 523.1073419 | AD13: =AB13-AE13-AC13 -> 3.693258925 | AE13: =K13 -> -533.7281666 | AG13: =AI12*$AI$3 -> 313.3967152 | AH13: =AG13*IncomeTax -> 87.75108026 | AI13: =AI12+AG13-AH13 -> 9073.491354
J14: =SUM(J9:J13) -> 0 | O14: =IRR(range5) -> 0.02550288987 | P14: =SUM(P8:P13) -> 0 | Q14: =IRR(Q8:Q13,0) -> 0.02550288987
M15: =solve5*100 -> -16459 | N15: Base | O15: =ROUND(NPV(discount,'5 Year Model'!$O$9:$O$13)+$O$8,2) -> -164.59 | Q15: 399.4131069 | AB15: Final Debt Value | AE15: =N13+0.000001 -> 5080.548752
N16: ="Base "&TEXT(-range/2,"0.0%") -> Base -1.0% | O16: =ROUND(NPV(discount-range/2,'5 Year Model'!$O$9:$O$13)+$O$8,2) -> -52.62 | Q16: 365.3506667 | AB16: Final Land Value | AE16: =M13-L13 -> 8760.74534
N17: ="Base "&TEXT(-range/4,"0.0%") -> Base -0.5% | O17: =ROUND(NPV(discount-range/4,'5 Year Model'!$O$9:$O$13)+$O$8,0) -> -109
N18: ="Base "&TEXT(range/4,"0.0%") -> Base 0.5% | O18: =ROUND(NPV(discount+range/4,'5 Year Model'!$O$9:$O$13)+$O$8,2) -> -218.08 | AB18: Net Present Value | AE18: =solve5 -> -164.59
N19: ="Base "&TEXT(range/2,"0.0%") -> Base 1.0% | O19: =ROUND(NPV(discount+range/2,'5 Year Model'!$O$9:$O$13)+$O$8,2) -> -269.98 | Q19: 433.3751872 | AB19: After-tax Yield | AE19: =O14 -> 0.02550288987
N22: ="Bid price "&TEXT(-range/2,"0.0%") -> Bid price -1.0% | O22: 7633.81 | P22: =IF(O22<0,"NA",O22) -> 7633.81
N23: ="Bid price "&TEXT(-range/4,"0.0%") -> Bid price -0.5% | O23: 7265.4 | P23: =IF(O23<0,"NA",O23) -> 7265.4
N24: Bid Price | O24: 6929.9 | P24: =IF(O24<0,"NA",O24) -> 6929.9
N25: ="Bid price "&TEXT(range/4,"0.0%") -> Bid price 0.5% | O25: 6625.12 | P25: =IF(O25<0,"NA",O25) -> 6625.12
N26: ="Bid price "&TEXT(range/2,"0.0%") -> Bid price 1.0% | O26: 6346.46 | P26: =IF(O26<0,"NA",O26) -> 6346.46
O27: 1882.15
N28: Bid Price Grow 0 | O28: 4586.85 | P28: =IF(O28<0,"NA",O28) -> 4586.85
N29: Bid Price Grow 1.0 | O29: 5520.47 | P29: =IF(O29<0,"NA",O29) -> 5520.47
N30: Bid Price Grow 2.5 | O30: 9303.52 | P30: =IF(O30<0,"NA",O30) -> 9303.52
N31: Bid Price Grow 5.0 | O31: 29469.41 | P31: =IF(O31<0,"NA",O31) -> 29469.41
N33: ="Growth rate "&TEXT('Sensitivity Tables'!$I$54,"0.0%") -> Growth rate 3.0% | O33: 0.02160910488
N34: ="Growth rate "&TEXT('Sensitivity Tables'!$J$54,"0.0%") -> Growth rate 4.0% | O34: 0.02524208986
N35: ="Growth rate "&TEXT('Sensitivity Tables'!$K$54,"0.0%") -> Growth rate 5.0% | O35: 0.02895108175
N37: ="Cash Growth rate "&TEXT('Sensitivity Tables'!$J$54,"0.0%") -> Cash Growth rate 4.0% | O37: 0.09469576297
N41: ="Land Growth rate "&TEXT('Sensitivity Tables'!$J$54,"0.0%") -> Land Growth rate 4.0% | O41: 0.02560602226
B47: Factor | C47: 1
O48: 1107.24 | Q48: 6550.9 | R48: =IF(Q48<0,"NA",Q48) -> 6550.9
O49: 1136.37 | Q49: 6740.41 | R49: =IF(Q49<0,"NA",Q49) -> 6740.41
O51: 1194.65 | Q51: 7119.4 | R51: =IF(Q51<0,"NA",Q51) -> 7119.4
O52: 1223.7873 | Q52: 7308.8561 | R52: =IF(Q52<0,"NA",Q52) -> 7308.8561

Sheet 10 Year Model
AA1: Cash Flow for Equivalent Investments 10 Year Model
AB2: Analysis Price/Acre | AC2: =AC4/AC3 -> 8000 | AG2: Certificate of Deposit | AI2: =AC4 -> 8000
C3: ='Sensitivity Tables'!$B$34 -> 1 | E3: 10 year horizon | AB3: Acres | AC3: =acres -> 1 | AG3: Interest Rate | AI3: =O19/(1-IncomeTax) -> 0.05672930389
Q4: Analysis Price | AB4: Total Purchase | AC4: =price10 -> 8000 | AG4: After Tax Cash Flows Reinvested Annually
E5: Property Taxes | I5: Downpayment & | N5: Analysis Price: | O5: =analysis -> 8000 | Q5: ='Sensitivity Tables'!C18 -> 8000 | AB5: Net Cash Flows | AD5: Income | AE5: After Tax | AH5: Income | AI5: End-of-Year
B6: 1 | D6: Net | E6: and Amortized | F6: Debt | G6: Debt | H6: Interest | I6: Principal | K6: After Tax | L6: Capital | N6: Ending | O6: Net After Tax | Q6: Net Present | AA6: Year | AB6: Including RE Taxes | AC6: Debt Payments | AD6: Taxes | AE6: Cash Flows | AG6: Interest Income | AH6: Taxes | AI6: Value
C7: Year | D7: Cash Flows | E7: Closing Costs | F7: Payments | G7: Outstanding | H7: Payments | I7: Payments | J7: Depreciation | K7: Cash Flows | L7: Gains Tax | M7: Land Value | N7: Debt Value | O7: Cash Flows | Q7: Value Calc. | AB7: & Loan Fees | AI7: After Taxes
B8: Initial Investment | C8: 0 | I8: =O5*(1-financed) -> 2000 | K8: =-I8 -> -2000 | O8: =-(price10*closing)-I8 -> -2080 | Q8: -2080 | AA8: =C8 -> 0 | AB8: =price10*closing -> 80 | AC8: =F8 -> 0 | AE8: =price10*closing -> 80 | AI8: =AI2 -> 8000
B9: =CF -> 350 | C9: 1 | D9: =factor*CFlow10*(1+growcf10)^('10 Year Model'!C9-1)*acres -> 350 | E9: =acres*PropertyTaxAc*(1+growcf10)^('10 Year Model'!C9-1)+(price10*closing/10) -> 38 | F9: =IF(interest*amort>0,PMT(interest,amort,-'10 Year Model'!O5*financed),0) -> 523.1073419 | G9: =O5*financed -> 6000 | H9: =G9*interest -> 360 | I9: =F9-H9 -> 163.1073419 | J9: =+Elect179+'Main-Land Bid Price'!AI2 -> 0 | K9: =(D9-E9-H9)*(1-IncomeTax)-I9+(price10*closing/10)+J9*IncomeTax -> -189.6673419 | M9: =O5*(1+growland10) -> 8160 | O9: =K9 -> -189.6673419 | Q9: -189.6673419 | AA9: 1 | AB9: =D9-E9+(closing*price10/10) -> 320 | AC9: 523.1073419 | AD9: =AB9-AE9-AC9 -> -13.44 | AE9: =K9 -> -189.6673419 | AG9: =(1+$AI$3)^AA8*$AI$2*$AI$3 -> 453.8344312 | AH9: =AG9*IncomeTax -> 127.0736407 | AI9: =AI8+AG9-AH9 -> 8326.76079
B10: =GROWcf -> 0.02 | C10: 2 | D10: =factor*CFlow10*(1+growcf10)^('10 Year Model'!C10-1)*acres -> 357 | E10: =acres*PropertyTaxAc*(1+growcf10)^('10 Year Model'!C10-1)+(price10*closing/10) -> 38.6 | F10: =IF(C10<=amort,F9,0) -> 523.1073419 | G10: =IF(C10<=amort,G9-I9,0) -> 5836.892658 | H10: =G10*interest -> 350.2135595 | I10: =F10-H10 -> 172.8937824 | J10: =+'Main-Land Bid Price'!AI3 -> 0 | K10: -187.7995452 | M10: =M9*(1+growland10) -> 8323.2 | O10: =K10 -> -187.7995452 | Q10: -187.7995452 | AA10: 2 | AB10: =D10-E10+(closing*price10/10) -> 326.4 | AC10: 523.1073419 | AD10: -8.907796657 | AE10: -187.7995452 | AG10: =AI9*$AI$3 -> 472.3713433 | AH10: =AG10*IncomeTax -> 132.2639761 | AI10: 8666.868158
B11: =GROWland -> 0.02 | C11: 3 | D11: =factor*CFlow10*(1+growcf10)^('10 Year Model'!C11-1)*acres -> 364.14 | E11: =acres*PropertyTaxAc*(1+growcf10)^('10 Year Model'!C11-1)+(price10*closing/10) -> 39.212 | F11: =IF(C11<=amort,F10,0) -> 523.1073419 | G11: =IF(C11<=amort,G10-I10,0) -> 5663.998876 | H11: 339.8399325 | I11: 183.2674093 | J11: =+'Main-Land Bid Price'!AI4 -> 0 | K11: -186.0040007 | M11: =M10*(1+growland10) -> 8489.664 | O11: -186.0040007 | Q11: -186.0040007 | AA11: 3 | AB11: 332.928 | AC11: 523.1073419 | AD11: -4.175341113 | AE11: -186.0040007 | AG11: 491.6653975 | AH11: 137.6663113 | AI11: 9020.867244
B12: 0.02411223599 | C12: 4 | D12: =factor*CFlow10*(1+growcf10)^('10 Year Model'!C12-1)*acres -> 371.4228 | E12: =acres*PropertyTaxAc*(1+growcf10)^('10 Year Model'!C12-1)+(price10*closing/10) -> 39.83624 | F12: 523.1073419 | G12: 5480.731466 | H12: 328.843888 | I12: 194.2634539 | J12: =+'Main-Land Bid Price'!AI5 -> 0 | K12: -184.28873 | M12: 8659.45728 | O12: -184.28873 | Q12: -184.28873 | AA12: 4 | AB12: 339.58656 | AC12: 523.1073419 | AD12: 0.7679481636 | AE12: -184.28873 | AG12: 511.7475193 | AH12: 143.2893054 | AI12: 9389.325458
C13: 5 | D13: =factor*CFlow10*(1+growcf10)^('10 Year Model'!C13-1)*acres -> 378.851256 | E13: =acres*PropertyTaxAc*(1+growcf10)^('10 Year Model'!C13-1)+(price10*closing/10) -> 40.4729648 | F13: 523.1073419 | G13: 5286.468013 | H13: 317.1880808 | I13: 205.9192611 | J13: =+'Main-Land Bid Price'!AI6 -> 0 | K13: -182.6623096 | M13: 8832.646426 | O13: -182.6623096 | Q13: -182.6623096 | AA13: 5 | AB13: 346.3782912 | AC13: 523.1073419 | AD13: 5.933258925 | AE13: -182.6623096 | AG13: 532.6498973 | AH13: 149.1419712 | AI13: 9772.833384
C14: 6 | D14: =factor*CFlow10*(1+growcf10)^('10 Year Model'!C14-1)*acres -> 386.4282811 | E14: =acres*PropertyTaxAc*(1+growcf10)^('10 Year Model'!C14-1)+(price10*closing/10) -> 41.1224241 | F14: 523.1073419 | G14: 5080.548751 | H14: 304.8329251 | I14: 218.2744168 | J14: =+'Main-Land Bid Price'!AI7 -> 0 | K14: -181.1339058 | M14: 9009.299354 | O14: -181.1339058 | Q14: -181.1339058 | AA14: =C14 -> 6 | AB14: 353.305857 | AC14: =F14 -> 523.1073419 | AD14: 11.33242094 | AE14: -181.1339058 | AG14: 554.4060349 | AH14: 155.2336898 | AI14: 10172.00573
C15: 7 | D15: =factor*CFlow10*(1+growcf10)^('10 Year Model'!C15-1)*acres -> 394.1568467 | E15: =acres*PropertyTaxAc*(1+growcf10)^('10 Year Model'!C15-1)+(price10*closing/10) -> 41.78487258 | F15: 523.1073419 | G15: 4862.274335 | H15: 291.7364601 | I15: 231.3708818 | J15: =+'Main-Land Bid Price'!AI8 -> 0 | K15: -179.7133116 | M15: 9189.485341 | O15: -179.7133116 | Q15: -179.7133116 | AA15: =C15 -> 7 | AB15: 360.3719742 | AC15: =F15 -> 523.1073419 | AD15: 16.97794394 | AE15: -179.7133116 | AG15: 577.0508042 | AH15: 161.5742252 | AI15: 10587.48231
C16: 8 | D16: =factor*CFlow10*(1+growcf10)^('10 Year Model'!C16-1)*acres -> 402.0399837 | E16: =acres*PropertyTaxAc*(1+growcf10)^('10 Year Model'!C16-1)+(price10*closing/10) -> 42.46057003 | F16: 523.1073419 | G16: 4630.903453 | H16: 277.8542072 | I16: 245.2531347 | J16: =+'Main-Land Bid Price'!AI9 -> 0 | K16: -178.410986 | M16: 9373.275048 | O16: -178.410986 | Q16: -178.410986 | AA16: =C16 -> 8 | AB16: 367.5794136 | AC16: =F16 -> 523.1073419 | AD16: 22.88305781 | AE16: -178.410986 | AG16: 600.6205013 | AH16: 168.1737404 | AI16: 11019.92907
C17: 9 | D17: =factor*CFlow10*(1+growcf10)^('10 Year Model'!C17-1)*acres -> 410.0807834 | E17: =acres*PropertyTaxAc*(1+growcf10)^('10 Year Model'!C17-1)+(price10*closing/10) -> 43.14978143 | F17: 523.1073419 | G17: 4385.650318 | H17: 263.1390191 | I17: 259.9683228 | J17: =+'Main-Land Bid Price'!AI10 -> 0 | K17: -177.2380951 | M17: 9560.740549 | O17: -177.2380951 | Q17: -177.2380951 | AA17: =C17 -> 9 | AB17: 374.9310019 | AC17: =F17 -> 523.1073419 | AD17: 29.06175519 | AE17: -177.2380951 | AG17: 625.152905 | AH17: 175.0428134 | AI17: 11470.03916
B18: Terminal Value | C18: 10 | D18: =factor*CFlow10*(1+growcf10)^('10 Year Model'!C18-1)*acres -> 418.282399 | E18: =acres*PropertyTaxAc*(1+growcf10)^('10 Year Model'!C18-1)+(price10*closing/10) -> 43.85277706 | F18: 523.1073419 | G18: 4125.681995 | H18: 247.5409197 | I18: 275.5664221 | J18: =+'Main-Land Bid Price'!AI11 -> 0 | K18: =(D18-E18-H18)*(1-IncomeTax)-I18-(M18*closingEH)+(price10*closing/10)+J18*IncomeTax -> -566.2847709 | L18: =(M18+J19-O5-M18*closingEH)*CapitalGainsTax -> 204.2815718 | M18: 9751.95536 | N18: =G18-I18 -> 3850.115573 | O18: =K18+M18-L18-N18 -> 5131.273444 | Q18: 5131.273444 | AA18: =C18 -> 10 | AB18: =D18-E18+(closing*price10/10)-M18*closingEH -> -7.648592439 | AC18: =F18 -> 523.1073419 | AD18: =AB18-AE18-AC18 -> 35.52883662 | AE18: -566.2847709 | AG18: 650.6873372 | AH18: 182.1924544 | AI18: 11938.53404
J19: =SUM(J9:J18) -> 0 | O19: =IRR(Range10) -> 0.0408450988 | P19: Yield | Q19: =IRR(Q8:Q18,0) -> 0.0408450988
M20: =solve10*100 -> 2287 | N20: Base | O20: =ROUND(NPV(discount,'10 Year Model'!$O$9:$O$18)+$O$8,2) -> 22.87 | Q20: 346.4008543 | AB20: Final Debt Value | AE20: =N18+0.0000001 -> 3850.115573
N21: ="Base "&TEXT(-range/2,"0.0%") -> Base -1.0% | O21: =ROUND(NPV(discount-range/2,'10 Year Model'!$O$9:$O$18)+$O$8,2) -> 310.97 | Q21: 303.5362327 | AB21: Final Land Value | AE21: =M18-L18 -> 9547.673788
N22: ="Base "&TEXT(-range/4,"0.0%") -> Base -0.5% | O22: =ROUND(NPV(discount-range/4,'10 Year Model'!$O$9:$O$18)+$O$8,2) -> 162.79
N23: ="Base "&TEXT(range/4,"0.0%") -> Base 0.5% | O23: =ROUND(NPV(discount+range/4,'10 Year Model'!$O$9:$O$18)+$O$8,2) -> -109.28 | AB23: Net Present Value | AE23: =solve10 -> 22.87
N24: ="Base "&TEXT(range/2,"0.0%") -> Base 1.0% | O24: =ROUND(NPV(discount+range/2,'10 Year Model'!$O$9:$O$18)+$O$8,2) -> -234.12 | Q24: 388.7658026 | AB24: After-tax Yield | AE24: =O19 -> 0.0408450988
N26: ="Bid price "&TEXT(-range/2,"0.0%") -> Bid price -1.0% | O26: 9358.9 | P26: =IF(O26<0,"NA",O26) -> 9358.9
N27: ="Bid price "&TEXT(-range/4,"0.0%") -> Bid price -0.5% | O27: 8677.03 | P27: =IF(O27<0,"NA",O27) -> 8677.03
N28: Bid Price | O28: 8091.02 | P28: =IF(O28<0,"NA",O28) -> 8091.02
N29: ="Bid price "&TEXT(range/4,"0.0%") -> Bid price 0.5% | O29: 7581.93 | P29: =IF(O29<0,"NA",O29) -> 7581.93
N30: ="Bid price "&TEXT(range/2,"0.0%") -> Bid price 1.0% | O30: 7135.58 | P30: =IF(O30<0,"NA",O30) -> 7135.58
N32: Bid Price Grow 0 | O32: 5023.38 | P32: =IF(O32<0,"NA",O32) -> 5023.38
N33: Bid Price Grow 1.0 | O33: 6199.87 | P33: =IF(O33<0,"NA",O33) -> 6199.87
N34: Bid Price Grow 2.5 | O34: 11631.96 | P34: =IF(O34<0,"NA",O34) -> 11631.96
N35: Bid Price Grow 5.0 | O35: 91355.81 | P35: =IF(O35<0,"NA",O35) -> 91355.81
N37: ="Growth rate "&TEXT('Sensitivity Tables'!$I$54,"0.0%") -> Growth rate 3.0% | O37: 0.01529036229
N38: ="Growth rate "&TEXT('Sensitivity Tables'!$J$54,"0.0%") -> Growth rate 4.0% | O38: 0.01962668267
N39: ="Growth rate "&TEXT('Sensitivity Tables'!$K$54,"0.0%") -> Growth rate 5.0% | O39: 0.02411223599
N42: ="Cash Growth rate "&TEXT('Sensitivity Tables'!$J$54,"0.0%") -> Cash Growth rate 4.0% | O42: 0.01733809171
N46: ="Land Growth rate "&TEXT('Sensitivity Tables'!$J$54,"0.0%") -> Land Growth rate 4.0% | O46: 0.01956524155
Q48: 7648.52 | R48: =IF(Q48<0,"NA",Q48) -> 7648.52
Q49: 7869.78 | R49: =IF(Q49<0,"NA",Q49) -> 7869.78
Q51: 8312.25 | R51: =IF(Q51<0,"NA",Q51) -> 8312.25
Q52: 8533.47 | R52: =IF(Q52<0,"NA",Q52) -> 8533.47

Sheet 30 Year Model
AA1: Cash Flow for Equivalent Investments 30 Year Model
AB2: Analysis Price/Acre | AC2: =AC4/AC3 -> 8000 | AG2: Certificate of Deposit | AI2: =AC4 -> 8000
C3: ='Sensitivity Tables'!$B$34 -> 1 | E3: 30 year horizon | AB3: Acres | AC3: =acres -> 1 | AG3: Interest Rate | AI3: =O39/(1-IncomeTax) -> 0.06600232671
Q4: Analysis Price | AB4: Total Purchase | AC4: =price30 -> 8000 | AG4: After Tax Cash Flows Reinvested Annually
E5: Property Taxes | I5: Downpayment & | N5: Analysis Price | O5: =analysis -> 8000 | Q5: =analysis -> 8000 | AB5: Net Cash Flows | AD5: Income | AE5: After Tax | AH5: Income | AI5: End-of-Year
D6: Net | E6: and Amortized | F6: Debt | G6: Debt | H6: Interest | I6: Principal | K6: After Tax | L6: Capital | N6: Ending | O6: Net After | Q6: Net Present | AA6: Year | AB6: Including RE Taxes | AC6: Debt Payments | AD6: Taxes | AE6: Cash Flows | AG6: Interest Income | AH6: Taxes | AI6: Value
C7: Year | D7: Cash Flows | E7: Closing Costs | F7: Payments | G7: Outstanding | H7: Payments | I7: Payments | J7: Depreciation | K7: Cash Flows | L7: Gains Tax | M7: Land Value | N7: Debt Value | O7: Tax Cash Flows | Q7: Value Calc. | AB7: & Loan Fees | AI7: After Taxes
B8: Initial Investment | C8: 0 | I8: =O5*(1-financed) -> 2000 | K8: =-I8 -> -2000 | O8: =-(price30*closing)-I8 -> -2080 | Q8: -2080 | AA8: =C8 -> 0 | AB8: =price30*closing -> 80 | AC8: =F8 -> 0 | AE8: =price30*closing -> 80 | AI8: =AI2 -> 8000
B9: =CF -> 350 | C9: 1 | D9: =factor*CFlow30*(1+growcf30)^('30 Year Model'!C9-1)*acres -> 350 | E9: =acres*PropertyTaxAc*(1+growcf30)^('30 Year Model'!C9-1)+(price30*closing/30) -> 32.66666667 | F9: =IF(interest*amort>0,PMT(interest,amort,-'30 Year Model'!O5*financed),0) -> 523.1073419 | G9: =O5*financed -> 6000 | H9: =G9*interest -> 360 | I9: =F9-H9 -> 163.1073419 | J9: =+Elect179+'Main-Land Bid Price'!AI2 -> 0 | K9: =(D9-E9-H9)*(1-IncomeTax)-I9+(price30*closing/30)+J9*IncomeTax -> -191.1606752 | M9: =O5*(1+growland30) -> 8160 | O9: =K9 -> -191.1606752 | Q9: -191.1606752 | AA9: =C9 -> 1 | AB9: =D9-E9+(closing*price30/30) -> 320 | AC9: =F9 -> 523.1073419 | AD9: =AB9-AE9-AC9 -> -11.94666667 | AE9: =K9 -> -191.1606752 | AG9: =(1+$AI$3)^AA8*$AI$2*$AI$3 -> 528.0186137 | AH9: =AG9*IncomeTax -> 147.8452118 | AI9: =AI8+AG9-AH9 -> 8380.173402
B10: =GROWcf -> 0.02 | C10: 2 | D10: =factor*CFlow30*(1+growcf30)^('30 Year Model'!C10-1)*acres -> 357 | E10: =acres*PropertyTaxAc*(1+growcf30)^('30 Year Model'!C10-1)+(price30*closing/30) -> 33.26666667 | F10: =IF(C10<=amort,F9,0) -> 523.1073419 | G10: =IF(C10<=amort,G9-I9,0) -> 5836.892658 | H10: =G10*interest -> 350.2135595 | I10: =F10-H10 -> 172.8937824 | J10: ='Main-Land Bid Price'!AI3 -> 0 | K10: -189.2928785 | M10: =M9*(1+growland30) -> 8323.2 | O10: =K10 -> -189.2928785 | Q10: -189.2928785 | AA10: 2 | AB10: =D10-E10+(closing*price30/30) -> 326.4 | AC10: 523.1073419 | AD10: =AB10-AE10-AC10 -> -7.414463323 | AE10: -189.2928785 | AG10: =AI9*$AI$3 -> 553.1109428 | AH10: =AG10*IncomeTax -> 154.871064 | AI10: =AI9+AG10-AH10 -> 8778.413281
B11: =GROWland -> 0.02 | C11: =C10+1 -> 3 | D11: =factor*CFlow30*(1+growcf30)^('30 Year Model'!C11-1)*acres -> 364.14 | E11: =acres*PropertyTaxAc*(1+growcf30)^('30 Year Model'!C11-1)+(price30*closing/30) -> 33.87866667 | F11: 523.1073419 | G11: =IF(C11<=amort,G10-I10,0) -> 5663.998876 | H11: 339.8399325 | I11: 183.2674093 | J11: ='Main-Land Bid Price'!AI4 -> 0 | K11: -187.4973341 | M11: =M10*(1+growland30) -> 8489.664 | O11: -187.4973341 | Q11: -187.4973341 | AA11: 3 | AB11: 332.928 | AC11: 523.1073419 | AD11: -2.68200778 | AE11: -187.4973341 | AG11: =AI10*$AI$3 -> 579.3957014 | AH11: 162.2307964 | AI11: 9195.578186
B12: 0.02175251179 | C12: =C11+1 -> 4 | D12: =factor*CFlow30*(1+growcf30)^('30 Year Model'!C12-1)*acres -> 371.4228 | E12: =acres*PropertyTaxAc*(1+growcf30)^('30 Year Model'!C12-1)+(price30*closing/30) -> 34.50290667 | F12: 523.1073419 | G12: 5480.731466 | H12: 328.843888 | I12: 194.2634539 | J12: ='Main-Land Bid Price'!AI5 -> 0 | K12: -185.7820634 | M12: 8659.45728 | O12: -185.7820634 | Q12: -185.7820634 | AA12: 4 | AB12: 339.58656 | AC12: 523.1073419 | AD12: 2.261281497 | AE12: -185.7820634 | AG12: 606.9295557 | AH12: 169.9402756 | AI12: 9632.567466
C13: =C12+1 -> 5 | D13: =factor*CFlow30*(1+growcf30)^('30 Year Model'!C13-1)*acres -> 378.851256 | E13: =acres*PropertyTaxAc*(1+growcf30)^('30 Year Model'!C13-1)+(price30*closing/30) -> 35.13963147 | F13: 523.1073419 | G13: 5286.468013 | H13: 317.1880808 | I13: 205.9192611 | J13: ='Main-Land Bid Price'!AI6 -> 0 | K13: -184.1556429 | M13: 8832.646426 | O13: -184.1556429 | Q13: -184.1556429 | AA13: 5 | AB13: 346.3782912 | AC13: 523.1073419 | AD13: 7.426592258 | AE13: -184.1556429 | AG13: 635.771865 | AH13: 178.0161222 | AI13: 10090.32321
C14: 6 | D14: =factor*CFlow30*(1+growcf30)^('30 Year Model'!C14-1)*acres -> 386.4282811 | E14: =acres*PropertyTaxAc*(1+growcf30)^('30 Year Model'!C14-1)+(price30*closing/30) -> 35.78909076 | F14: 523.1073419 | G14: 5080.548751 | H14: 304.8329251 | I14: 218.2744168 | J14: ='Main-Land Bid Price'!AI7 -> 0 | K14: -182.6272391 | M14: 9009.299354 | O14: -182.6272391 | Q14: -182.6272391 | AA14: 6 | AB14: 353.305857 | AC14: 523.1073419 | AD14: 12.82575428 | AE14: -182.6272391 | AG14: 665.984809 | AH14: 186.4757465 | AI14: 10569.83227
C15: 7 | D15: =factor*CFlow30*(1+growcf30)^('30 Year Model'!C15-1)*acres -> 394.1568467 | E15: =acres*PropertyTaxAc*(1+growcf30)^('30 Year Model'!C15-1)+(price30*closing/30) -> 36.45153924 | F15: 523.1073419 | G15: 4862.274335 | H15: 291.7364601 | I15: 231.3708818 | J15: ='Main-Land Bid Price'!AI8 -> 0 | K15: -181.206645 | M15: 9189.485341 | O15: -181.206645 | Q15: -181.206645 | AA15: 7 | AB15: 360.3719742 | AC15: 523.1073419 | AD15: 18.47127728 | AE15: -181.206645 | AG15: 697.6335228 | AH15: 195.3373864 | AI15: 11072.12841
C16: 8 | D16: =factor*CFlow30*(1+growcf30)^('30 Year Model'!C16-1)*acres -> 402.0399837 | E16: =acres*PropertyTaxAc*(1+growcf30)^('30 Year Model'!C16-1)+(price30*closing/30) -> 37.1272367 | F16: 523.1073419 | G16: 4630.903453 | H16: 277.8542072 | I16: 245.2531347 | J16: ='Main-Land Bid Price'!AI9 -> 0 | K16: -179.9043194 | M16: 9373.275048 | O16: -179.9043194 | Q16: -179.9043194 | AA16: 8 | AB16: 367.5794136 | AC16: 523.1073419 | AD16: 24.37639115 | AE16: -179.9043194 | AG16: 730.7862365 | AH16: 204.6201462 | AI16: 11598.2945
C17: 9 | D17: =factor*CFlow30*(1+growcf30)^('30 Year Model'!C17-1)*acres -> 410.0807834 | E17: =acres*PropertyTaxAc*(1+growcf30)^('30 Year Model'!C17-1)+(price30*closing/30) -> 37.8164481 | F17: 523.1073419 | G17: 4385.650318 | H17: 263.1390191 | I17: 259.9683228 | J17: ='Main-Land Bid Price'!AI10 -> 0 | K17: -178.7314285 | M17: 9560.740549 | O17: -178.7314285 | Q17: -178.7314285 | AA17: 9 | AB17: 374.9310019 | AC17: 523.1073419 | AD17: 30.55508852 | AE17: -178.7314285 | AG17: 765.5144227 | AH17: 214.3440384 | AI17: 12149.46488
C18: 10 | D18: =factor*CFlow30*(1+growcf30)^('30 Year Model'!C18-1)*acres -> 418.282399 | E18: =acres*PropertyTaxAc*(1+growcf30)^('30 Year Model'!C18-1)+(price30*closing/30) -> 38.51944373 | F18: 523.1073419 | G18: 4125.681995 | H18: 247.5409197 | I18: 275.5664221 | J18: ='Main-Land Bid Price'!AI11 -> 0 | K18: -177.6998899 | M18: 9751.95536 | O18: -177.6998899 | Q18: -177.6998899 | AA18: =C18 -> 10 | AB18: 382.429622 | AC18: =F18 -> 523.1073419 | AD18: =AB18-AE18-AC18 -> 37.02216996 | AE18: =K18 -> -177.6998899 | AG18: =AI17*$AI$3 -> 801.8929505 | AH18: 224.5300261 | AI18: =AI17+AG18-AH18 -> 12726.82781
C19: 11 | D19: =factor*CFlow30*(1+growcf30)^('30 Year Model'!C19-1)*acres -> 426.648047 | E19: =acres*PropertyTaxAc*(1+growcf30)^('30 Year Model'!C19-1)+(price30*closing/30) -> 39.23649927 | F19: 523.1073419 | G19: 3850.115573 | H19: 231.0069344 | I19: 292.1004075 | J19: ='Main-Land Bid Price'!AI12 -> 0 | K19: -176.8224192 | M19: 9946.994467 | O19: -176.8224192 | Q19: -176.8224192 | AA19: 11 | AB19: 390.0782144 | AC19: 523.1073419 | AD19: 43.79329173 | AE19: -176.8224192 | AG19: 840.0002469 | AH19: 235.2000691 | AI19: 13331.62798
C20: 12 | D20: =factor*CFlow30*(1+growcf30)^('30 Year Model'!C20-1)*acres -> 435.1810079 | E20: =acres*PropertyTaxAc*(1+growcf30)^('30 Year Model'!C20-1)+(price30*closing/30) -> 39.96789592 | F20: 523.1073419 | G20: 3558.015166 | H20: 213.48091 | I20: 309.6264319 | J20: ='Main-Land Bid Price'!AI13 -> 0 | K20: -176.1125798 | M20: 10145.93436 | O20: -176.1125798 | Q20: -176.1125798 | AA20: 12 | AB20: 397.8797787 | AC20: 523.1073419 | AD20: 50.88501658 | AE20: -176.1125798 | AG20: 879.9184658 | AH20: 246.3771704 | AI20: 13965.16928
C21: 13 | D21: =factor*CFlow30*(1+growcf30)^('30 Year Model'!C21-1)*acres -> 443.8846281 | E21: =acres*PropertyTaxAc*(1+growcf30)^('30 Year Model'!C21-1)+(price30*closing/30) -> 40.7139205 | F21: 523.1073419 | G21: 3248.388734 | H21: 194.903324 | I21: 328.2040178 | J21: ='Main-Land Bid Price'!AI14 -> 0 | K21: -175.584835 | M21: 10348.85304 | O21: -175.584835 | Q21: -175.584835 | AA21: 13 | AB21: 405.8373743 | AC21: 523.1073419 | AD21: 58.3148674 | AE21: -175.584835 | AG21: 921.7336654 | AH21: 258.0854263 | AI21: 14628.81752
C22: 14 | D22: =factor*CFlow30*(1+growcf30)^('30 Year Model'!C22-1)*acres -> 452.7623207 | E22: =acres*PropertyTaxAc*(1+growcf30)^('30 Year Model'!C22-1)+(price30*closing/30) -> 41.47486558 | F22: 523.1073419 | G22: 2920.184716 | H22: 175.211083 | I22: 347.8962589 | J22: ='Main-Land Bid Price'!AI15 -> 0 | K22: -175.2546043 | M22: 10555.8301 | O22: -175.2546043 | Q22: -175.2546043 | AA22: 14 | AB22: 413.9541217 | AC22: 523.1073419 | AD22: 66.10138419 | AE22: -175.2546043 | AG22: 965.5359933 | AH22: 270.3500781 | AI22: 15324.00343
C23: 15 | D23: =factor*CFlow30*(1+growcf30)^('30 Year Model'!C23-1)*acres -> 461.8175671 | E23: =acres*PropertyTaxAc*(1+growcf30)^('30 Year Model'!C23-1)+(price30*closing/30) -> 42.25102956 | F23: 523.1073419 | G23: 2572.288457 | H23: 154.3373074 | I23: 368.7700344 | J23: ='Main-Land Bid Price'!AI16 -> 0 | K23: -175.1383221 | M23: 10766.94671 | O23: -175.1383221 | Q23: -175.1383221 | AA23: 15 | AB23: 422.2332042 | AC23: 523.1073419 | AD23: 74.26418442 | AE23: -175.1383221 | AG23: 1011.419881 | AH23: 283.1975667 | AI23: 16052.22575
C24: 16 | D24: =factor*CFlow30*(1+growcf30)^('30 Year Model'!C24-1)*acres -> 471.0539184 | E24: =acres*PropertyTaxAc*(1+growcf30)^('30 Year Model'!C24-1)+(price30*closing/30) -> 43.04271682 | F24: 523.1073419 | G24: 2203.518423 | H24: 132.2111054 | I24: 390.8962365 | J24: ='Main-Land Bid Price'!AI17 -> 0 | K24: -175.2535005 | M24: 10982.28564 | O24: -175.2535005 | Q24: -175.2535005 | AA24: 16 | AB24: 430.6778683 | AC24: 523.1073419 | AD24: 82.82402694 | AE24: -175.2535005 | AG24: 1059.484248 | AH24: 296.6555895 | AI24: 16815.05441
C25: 17 | D25: =factor*CFlow30*(1+growcf30)^('30 Year Model'!C25-1)*acres -> 480.4749968 | E25: =acres*PropertyTaxAc*(1+growcf30)^('30 Year Model'!C25-1)+(price30*closing/30) -> 43.85023782 | F25: 523.1073419 | G25: 1812.622186 | H25: 108.7573312 | I25: 414.3500107 | J25: ='Main-Land Bid Price'!AI18 -> 0 | K25: -175.618796 | M25: 11201.93135 | O25: -175.618796 | Q25: -175.618796 | AA25: 17 | AB25: 439.2914256 | AC25: 523.1073419 | AD25: 91.80287978 | AE25: -175.618796 | AG25: 1109.832715 | AH25: 310.7531601 | AI25: 17614.13396
C26: 18 | D26: =factor*CFlow30*(1+growcf30)^('30 Year Model'!C26-1)*acres -> 490.0844967 | E26: =acres*PropertyTaxAc*(1+growcf30)^('30 Year Model'!C26-1)+(price30*closing/30) -> 44.67390924 | F26: 523.1073419 | G26: 1398.272176 | H26: 83.89633054 | I26: 439.2110113 | J26: ='Main-Land Bid Price'!AI19 -> 0 | K26: -176.2540797 | M26: 11425.96998 | O26: -176.2540797 | Q26: -176.2540797 | AA26: 18 | AB26: 448.0772541 | AC26: 523.1073419 | AD26: 101.2239919 | AE26: -176.2540797 | AG26: 1162.573824 | AH26: 325.5206709 | AI26: 18451.18712
C27: 19 | D27: =factor*CFlow30*(1+growcf30)^('30 Year Model'!C27-1)*acres -> 499.8861867 | E27: =acres*PropertyTaxAc*(1+growcf30)^('30 Year Model'!C27-1)+(price30*closing/30) -> 45.51405409 | F27: 523.1073419 | G27: 959.0611643 | H27: 57.54366986 | I27: 465.563672 | J27: ='Main-Land Bid Price'!AI20 -> 0 | K27: -177.1805122 | M27: 11654.48938 | O27: -177.1805122 | Q27: -177.1805122 | AA27: 19 | AB27: 457.0387992 | AC27: 523.1073419 | AD27: 111.1119696 | AE27: -177.1805122 | AG27: 1217.82128 | AH27: 340.9899585 | AI27: 19328.01844
C28: 20 | D28: =factor*CFlow30*(1+growcf30)^('30 Year Model'!C28-1)*acres -> 509.8839104 | E28: =acres*PropertyTaxAc*(1+growcf30)^('30 Year Model'!C28-1)+(price30*closing/30) -> 46.37100184 | F28: 523.1073419 | G28: 493.4974923 | H28: 29.60984954 | I28: 493.4974923 | J28: ='Main-Land Bid Price'!AI21 -> 0 | K28: -178.4206232 | M28: 11887.57917 | O28: -178.4206232 | Q28: -178.4206232 | AA28: 20 | AB28: 466.1795752 | AC28: 523.1073419 | AD28: 121.4928565 | AE28: -178.4206232 | AG28: 1275.694188 | AH28: 357.1943725 | AI28: 20246.51825
C29: 21 | D29: =factor*CFlow30*(1+growcf30)^('30 Year Model'!C29-1)*acres -> 520.0815886 | E29: =acres*PropertyTaxAc*(1+growcf30)^('30 Year Model'!C29-1)+(price30*closing/30) -> 47.24508855 | F29: 0 | G29: 0 | H29: 0 | I29: 0 | J29: ='Main-Land Bid Price'!AI22 -> 0 | K29: 343.1089467 | M29: 12125.33075 | O29: 343.1089467 | Q29: 343.1089467 | AA29: 21 | AB29: 475.5031667 | AC29: 0 | AD29: 132.39422 | AE29: 343.1089467 | AG29: 1336.317312 | AH29: 374.1688475 | AI29: 21208.66672
C30: 22 | D30: =factor*CFlow30*(1+growcf30)^('30 Year Model'!C30-1)*acres -> 530.4832204 | E30: =acres*PropertyTaxAc*(1+growcf30)^('30 Year Model'!C30-1)+(price30*closing/30) -> 48.13665698 | F30: 0 | G30: 0 | H30: 0 | I30: 0 | J30: ='Main-Land Bid Price'!AI23 -> 0 | K30: 349.9561923 | M30: 12367.83737 | O30: 349.9561923 | Q30: 349.9561923 | AA30: 22 | AB30: 485.01323 | AC30: 0 | AD30: 135.0570377 | AE30: 349.9561923 | AG30: 1399.82135 | AH30: 391.9499779 | AI30: 22216.53809
C31: 23 | D31: =factor*CFlow30*(1+growcf30)^('30 Year Model'!C31-1)*acres -> 541.0928848 | E31: =acres*PropertyTaxAc*(1+growcf30)^('30 Year Model'!C31-1)+(price30*closing/30) -> 49.04605679 | F31: 0 | G31: 0 | H31: 0 | I31: 0 | J31: ='Main-Land Bid Price'!AI24 -> 0 | K31: 356.9403828 | M31: 12615.19411 | O31: 356.9403828 | Q31: 356.9403828 | AA31: 23 | AB31: 494.7134946 | AC31: 0 | AD31: 137.7731118 | AE31: 356.9403828 | AG31: 1466.343205 | AH31: 410.5760975 | AI31: 23272.3052
C32: 24 | D32: =factor*CFlow30*(1+growcf30)^('30 Year Model'!C32-1)*acres -> 551.9147425 | E32: =acres*PropertyTaxAc*(1+growcf30)^('30 Year Model'!C32-1)+(price30*closing/30) -> 49.97364459 | F32: 0 | G32: 0 | H32: 0 | I32: 0 | J32: ='Main-Land Bid Price'!AI25 -> 0 | K32: 364.0642571 | M32: 12867.498 | O32: 364.0642571 | Q32: 364.0642571 | AA32: 24 | AB32: 504.6077645 | AC32: 0 | AD32: 140.5435074 | AE32: 364.0642571 | AG32: 1536.026291 | AH32: 430.0873615 | AI32: 24378.24413
C33: 25 | D33: =factor*CFlow30*(1+growcf30)^('30 Year Model'!C33-1)*acres -> 562.9530373 | E33: =acres*PropertyTaxAc*(1+growcf30)^('30 Year Model'!C33-1)+(price30*closing/30) -> 50.91978415 | F33: 0 | G33: 0 | H33: 0 | I33: 0 | J33: ='Main-Land Bid Price'!AI26 -> 0 | K33: 371.3306089 | M33: 13124.84796 | O33: 371.3306089 | Q33: 371.3306089 | AA33: 25 | AB33: 514.6999198 | AC33: 0 | AD33: 143.3693109 | AE33: 371.3306089 | AG33: 1609.020833 | AH33: 450.5258334 | AI33: 25536.73913
C34: 26 | D34: =factor*CFlow30*(1+growcf30)^('30 Year Model'!C34-1)*acres -> 574.2120981 | E34: =acres*PropertyTaxAc*(1+growcf30)^('30 Year Model'!C34-1)+(price30*closing/30) -> 51.8848465 | F34: 0 | G34: 0 | H34: 0 | I34: 0 | J34: ='Main-Land Bid Price'!AI27 -> 0 | K34: 378.7422878 | M34: 13387.34491 | O34: 378.7422878 | Q34: 378.7422878 | AA34: 26 | AB34: 524.9939182 | AC34: 0 | AD34: 146.2516304 | AE34: 378.7422878 | AG34: 1685.484199 | AH34: 471.9355757 | AI34: 26750.28775
C35: 27 | D35: =factor*CFlow30*(1+growcf30)^('30 Year Model'!C35-1)*acres -> 585.69634 | E35: =acres*PropertyTaxAc*(1+growcf30)^('30 Year Model'!C35-1)+(price30*closing/30) -> 52.8692101 | F35: 0 | G35: 0 | H35: 0 | I35: 0 | J35: ='Main-Land Bid Price'!AI28 -> 0 | K35: 386.3022002 | M35: 13655.09181 | O35: 386.3022002 | Q35: 386.3022002 | AA35: 27 | AB35: 535.4937966 | AC35: 0 | AD35: 149.1915964 | AE35: 386.3022002 | AG35: 1765.581232 | AH35: 494.3627449 | AI35: 28021.50624
C36: 28 | D36: =factor*CFlow30*(1+growcf30)^('30 Year Model'!C36-1)*acres -> 597.4102668 | E36: =acres*PropertyTaxAc*(1+growcf30)^('30 Year Model'!C36-1)+(price30*closing/30) -> 53.87326097 | F36: 0 | G36: 0 | H36: 0 | I36: 0 | J36: ='Main-Land Bid Price'!AI29 -> 0 | K36: 394.0133109 | M36: 13928.19365 | O36: 394.0133109 | Q36: 394.0133109 | AA36: 28 | AB36: 546.2036725 | AC36: 0 | AD36: 152.1903616 | AE36: 394.0133109 | AG36: 1849.48461 | AH36: 517.8556907 | AI36: 29353.13516
C37: 29 | D37: =factor*CFlow30*(1+growcf30)^('30 Year Model'!C37-1)*acres -> 609.3584722 | E37: =acres*PropertyTaxAc*(1+growcf30)^('30 Year Model'!C37-1)+(price30*closing/30) -> 54.89739285 | F37: 0 | G37: 0 | H37: 0 | I37: 0 | J37: ='Main-Land Bid Price'!AI30 -> 0 | K37: 401.8786438 | M37: 14206.75752 | O37: 401.8786438 | Q37: 401.8786438 | AA37: 29 | AB37: 557.127746 | AC37: 0 | AD37: 155.2491022 | AE37: 401.8786438 | AG37: 1937.375217 | AH37: 542.4650606 | AI37: 30748.04531
B38: Terminal Value | C38: 30 | D38: =factor*CFlow30*(1+growcf30)^('30 Year Model'!C38-1)*acres -> 621.5456416 | E38: =acres*PropertyTaxAc*(1+growcf30)^('30 Year Model'!C38-1)+(price30*closing/30) -> 55.94200738 | F38: =IF(C38<=amort,F30,0) -> 0 | G38: 0 | H38: =G38*interest -> 0 | I38: =F38-H38 -> 0 | J38: ='Main-Land Bid Price'!AI31 -> 0 | K38: =(D38-E38-H38)*(1-IncomeTax)-I38-(M38*closingEH)+(price30*closing/30)+J38*IncomeTax -> -169.7344236 | L38: =(M38+J39-O5-M38*closingEH)*CapitalGainsTax -> 886.6885449 | M38: 14490.89267 | N38: =G38-I38 -> 0 | O38: =K38+M38-L38-N38 -> 13434.4697 | Q38: 13434.4697 | AA38: 30 | AB38: =D38-E38+(closing*price30/30)-M38*closingEH -> -11.36540602 | AC38: 0 | AD38: 158.3690176 | AE38: -169.7344236 | AG38: 2029.442532 | AH38: 568.2439091 | AI38: 32209.24393
J39: =SUM(J9:J38) -> 0 | O39: =IRR(O8:O38,0) -> 0.04752167523 | Q39: =IRR(Q8:Q38,0) -> 0.04752167523
M40: =solve30*100 -> 85751 | N40: Base | O40: =ROUND(NPV(discount,'30 Year Model'!$O$9:$O$38)+$O$8,2) -> 857.51 | Q40: 296.0513293 | AB40: Final Debt Value | AE40: =N38+0.0000001 -> 1e-07
N41: ="Base "&TEXT(-range/2,"0.0%") -> Base -1.0% | O41: =ROUND(NPV(discount-range/2,'30 Year Model'!$O$9:$O$38)+$O$8,2) -> 2362.52 | Q41: 220.6853102 | AB41: Final Land Value | AE41: =M38-L38 -> 13604.20413
N42: ="Base "&TEXT(-range/4,"0.0%") -> Base -0.5% | O42: =ROUND(NPV(discount-range/4,'30 Year Model'!$O$9:$O$38)+$O$8,2) -> 1550.99
N43: ="Base "&TEXT(range/4,"0.0%") -> Base 0.5% | O43: =ROUND(NPV(discount+range/4,'30 Year Model'!$O$9:$O$38)+$O$8,2) -> 265.1 | AB43: Net Present Value | AE43: =solve30 -> 857.51
N44: ="Base "&TEXT(range/2,"0.0%") -> Base 1.0% | O44: =ROUND(NPV(discount+range/2,'30 Year Model'!$O$9:$O$38)+$O$8,2) -> -240.71 | Q44: 367.266133 | AB44: After-tax Yield | AE44: =O39 -> 0.04752167523
N46: ="Bid price "&TEXT(-range/2,"0.0%") -> Bid price -1.0% | O46: 13425.27 | P46: =IF(O46<0,"NA",O46) -> 13425.27
N47: ="Bid price "&TEXT(-range/4,"0.0%") -> Bid price -0.5% | O47: 11184.41 | P47: =IF(O47<0,"NA",O47) -> 11184.41
N48: Bid Price | O48: 9622.21 | P48: =IF(O48<0,"NA",O48) -> 9622.21 | Q48: 9095.99 | R48: =IF(Q48<0,"NA",Q48) -> 9095.99
N49: ="Bid price "&TEXT(range/4,"0.0%") -> Bid price 0.5% | O49: 8471.94 | P49: =IF(O49<0,"NA",O49) -> 8471.94 | Q49: 9359.11 | R49: =IF(Q49<0,"NA",Q49) -> 9359.11
N50: ="Bid price "&TEXT(range/2,"0.0%") -> Bid price 1.0% | O50: 7590.44 | P50: =IF(O50<0,"NA",O50) -> 7590.44
O51: 2719.81 | Q51: 9885.32 | R51: =IF(Q51<0,"NA",Q51) -> 9885.32
N52: Bid Price Grow 0 | O52: 5437.28 | P52: =IF(O52<0,"NA",O52) -> 5437.28 | Q52: 10148.42 | R52: =IF(Q52<0,"NA",Q52) -> 10148.42
N53: Bid Price Grow 1.0 | O53: 6956.46 | P53: =IF(O53<0,"NA",O53) -> 6956.46
N54: Bid Price Grow 2.5 | O54: 15515.89 | P54: =IF(O54<0,"NA",O54) -> 15515.89
N55: Bid Price Grow 5.0 | O55: -74365.33 | P55: =IF(O55<0,"NA",O55) -> NA
N57: ="Growth rate "&TEXT('Sensitivity Tables'!$I$54,"0.0%") -> Growth rate 3.0% | O57: 0.007676068258
N58: ="Growth rate "&TEXT('Sensitivity Tables'!$J$54,"0.0%") -> Growth rate 4.0% | O58: 0.01469763374
N59: ="Growth rate "&TEXT('Sensitivity Tables'!$K$54,"0.0%") -> Growth rate 5.0% | O59: 0.02175251179
N61: ="Cash Growth rate "&TEXT('Sensitivity Tables'!$J$54,"0.0%") -> Cash Growth rate 4.0% | O61: 0.005063083989
N65: ="Land Growth rate "&TEXT('Sensitivity Tables'!$J$54,"0.0%") -> Land Growth rate 4.0% | O65: 0.01092342866
